Department family,Entity,Date,Expense Type,Expense area,Supplier,Transaction number,AP Amount (�)
Department of Health,NHS Sheffield CCG,31/01/2020,PREPYMT OVERSEAS NON EEA PATIENTS,ACUTE COMMISSIONING,SHEFFIELD TEACHING HOSPITALS NHS FOUNDATION TRUST,30444131,"61,646.74"
Department of Health,NHS Sheffield CCG,31/01/2020,Clinical&Medical-Commercial Sector,PATIENT TRANSPORT,PREMIER CARE DIRECT LTD,30444139,"112,480.55"
Department of Health,NHS Sheffield CCG,31/01/2020,Voids and Subsidies,PRC DELEGATED CO-COMMISSIONING,COMMUNITY HEALTH PARTNERSHIPS LTD,30444146,"37,050.51"
Department of Health,NHS Sheffield CCG,31/01/2020,Voids and Subsidies,RECHARGES NHS PROPERTY SERVICES LTD,COMMUNITY HEALTH PARTNERSHIPS LTD,30444146,"117,396.67"
Department of Health,NHS Sheffield CCG,31/01/2020,Hcare Srv Rec Fdtn Trust-Contract Baseline,ACUTE COMMISSIONING,CHESTERFIELD ROYAL HOSPITAL NHS FOUNDATION TRUST,30444194,"318,586.00"
Department of Health,NHS Sheffield CCG,31/01/2020,Hcare Srv Rec Fdtn Trust-Contract Baseline,ACUTE COMMISSIONING,SHEFFIELD TEACHING HOSPITALS NHS FOUNDATION TRUST,30444221,"349,100.00"
Department of Health,NHS Sheffield CCG,31/01/2020,Cont Care-Physical Disab (65+),CHC ADULT FULLY FUNDED,SHEFFIELD CITY COUNCIL,30444223,"897,407.71"
Department of Health,NHS Sheffield CCG,31/01/2020,PREPYMT OVERSEAS EEA PATIENTS,ACUTE COMMISSIONING,SHEFFIELD TEACHING HOSPITALS NHS FOUNDATION TRUST,30444232,"-32,540.92"
Department of Health,NHS Sheffield CCG,31/01/2020,Cont Care- Children,CHC CHILDREN,SHEFFIELD CITY COUNCIL,30444248,"55,413.92"
Department of Health,NHS Sheffield CCG,31/01/2020,PREPYMT OVERSEAS NON EEA PATIENTS,ACUTE COMMISSIONING,SHEFFIELD TEACHING HOSPITALS NHS FOUNDATION TRUST,30444276,"-70,621.77"
Department of Health,NHS Sheffield CCG,31/01/2020,PREPYMT OVERSEAS NON EEA PATIENTS,ACUTE COMMISSIONING,SHEFFIELD TEACHING HOSPITALS NHS FOUNDATION TRUST,30444279,"-46,378.50"
Department of Health,NHS Sheffield CCG,31/01/2020,Charges from CSU,BUSINESS INFORMATICS,NHS NORTH OF ENGLAND CSU,30455042,"27,376.00"
Department of Health,NHS Sheffield CCG,31/01/2020,Computer Software/License,PRIMARY CARE IT,SOFTCAT PLC,30459858,"133,486.16"
Department of Health,NHS Sheffield CCG,31/01/2020,Hcare Srv Rec NHS Trust-Contract Baseline,ACUTE COMMISSIONING,LEEDS TEACHING HOSPITALS NHS TRUST,30468014,"-48,471.86"
Department of Health,NHS Sheffield CCG,31/01/2020,Hcare Srv Rec Fdtn Trust-Contract Baseline,ACUTE COMMISSIONING,BARNSLEY HOSPITAL NHS FOUNDATION TRUST,30468036,"86,710.00"
Department of Health,NHS Sheffield CCG,31/01/2020,Hcare Srv Rec NHS Trust-Contract Baseline,ACUTE COMMISSIONING,UNITED LINCOLNSHIRE HOSPITALS NHS TRUST,30468042,"26,180.60"
Department of Health,NHS Sheffield CCG,31/01/2020,Hcare Srv Rec NHS Trust-Contract Baseline,ACUTE COMMISSIONING,LEEDS TEACHING HOSPITALS NHS TRUST,30468049,"57,500.00"
Department of Health,NHS Sheffield CCG,31/01/2020,Clinical&Medical-Independent Sector,ACUTE COMMISSIONING,BMI HEALTHCARE LTD,30468087,"59,155.50"
Department of Health,NHS Sheffield CCG,31/01/2020,Cont Care-Physical Disab (65+),CHC ADULT FULLY FUNDED,BC SHEFFIELD LTD,30486645,"39,504.08"
Department of Health,NHS Sheffield CCG,31/01/2020,C&M-APMS DES Extended Hours Access,GP FORWARD VIEW,PRIMARY CARE SHEFFIELD LTD,30486656,"295,941.67"
Department of Health,NHS Sheffield CCG,31/01/2020,C&M-GMS LES Basket of Procedures,LOCAL ENHANCED SERVICES,PRIMARY CARE SHEFFIELD LTD,30486660,"52,308.33"
Department of Health,NHS Sheffield CCG,31/01/2020,Clinical&Medical-Serv Recd-NHS Trst,BEREAVEMENT SERVICE,HUMBER TEACHING NHS FOUNDATION TRUST,30508996,"41,250.00"
Department of Health,NHS Sheffield CCG,31/01/2020,Hcare Srv Rec NHS Trust-Contract Baseline,AMBULANCE SERVICES,YORKSHIRE AMBULANCE SERVICE NHS TRUST,30509018,"1,674,240.00"
Department of Health,NHS Sheffield CCG,31/01/2020,Hcare Srv Rec NHS Trust-Contract Baseline,NHS 111,YORKSHIRE AMBULANCE SERVICE NHS TRUST,30509021,"133,605.27"
Department of Health,NHS Sheffield CCG,31/01/2020,Hcare Srv Rec NHS Trust-Contract Baseline,PATIENT TRANSPORT,YORKSHIRE AMBULANCE SERVICE NHS TRUST,30509025,"267,243.94"
Department of Health,NHS Sheffield CCG,31/01/2020,Hcare Srv Rec NHS Trust-Contract Baseline,AMBULANCE SERVICES,YORKSHIRE AMBULANCE SERVICE NHS TRUST,30509032,"127,348.75"
Department of Health,NHS Sheffield CCG,31/01/2020,Hcare Srv Rec Fdtn Trust-Contract Baseline,ACUTE CHILDRENS SERVICES,SHEFFIELD CHILDRENS NHS FOUNDATION TRUST,30509034,"199,676.46"
Department of Health,NHS Sheffield CCG,31/01/2020,Clinical&Medical-Serv Recd-F Trsts,BEREAVEMENT SERVICE,SHEFFIELD TEACHING HOSPITALS NHS FOUNDATION TRUST,30520052,"175,000.00"
Department of Health,NHS Sheffield CCG,31/01/2020,Hcare Srv Rec Fdtn Trust-Contract Baseline,ACUTE COMMISSIONING,ROTHERHAM NHS FOUNDATION TRUST,30520072,"466,729.00"
Department of Health,NHS Sheffield CCG,31/01/2020,Clinical&Medical-Independent Sector,ACUTE COMMISSIONING,ONEHEALTH GROUP,30520096,"71,286.25"
Department of Health,NHS Sheffield CCG,31/01/2020,Cont Care-NHSFT-Adult 100% Funded,CHC ADULT FULLY FUNDED,SHEFFIELD HEALTH & SOCIAL CARE NHS FOUNDATION TRUST,30520106,"188,035.86"
Department of Health,NHS Sheffield CCG,31/01/2020,C&M-PMS Contract Value,PRC DELEGATED CO-COMMISSIONING,AVENUE MEDICAL CENTRE SHEFFIELD,30537055,"55,216.47"
Department of Health,NHS Sheffield CCG,31/01/2020,C&M-PMS Out of Hours Opt Outs,PRC DELEGATED CO-COMMISSIONING,AVENUE MEDICAL CENTRE SHEFFIELD,30537055,10.28
Department of Health,NHS Sheffield CCG,31/01/2020,C&M-PMS PCN DES Participation,PRC DELEGATED CO-COMMISSIONING,AVENUE MEDICAL CENTRE SHEFFIELD,30537055,"1,058.32"
Department of Health,NHS Sheffield CCG,31/01/2020,C&M-PMS PCO Other,PRC DELEGATED CO-COMMISSIONING,AVENUE MEDICAL CENTRE SHEFFIELD,30537055,460.3
Department of Health,NHS Sheffield CCG,31/01/2020,C&M-PMS Prem Notional Rent,PRC DELEGATED CO-COMMISSIONING,AVENUE MEDICAL CENTRE SHEFFIELD,30537055,"5,546.67"
Department of Health,NHS Sheffield CCG,31/01/2020,C&M-PMS Prem Rates,PRC DELEGATED CO-COMMISSIONING,AVENUE MEDICAL CENTRE SHEFFIELD,30537055,"1,264.00"
Department of Health,NHS Sheffield CCG,31/01/2020,C&M-PMS QOF Aspiration,PRC DELEGATED CO-COMMISSIONING,AVENUE MEDICAL CENTRE SHEFFIELD,30537055,"5,847.72"
Department of Health,NHS Sheffield CCG,31/01/2020,C&M-PMS Contract Value,PRC DELEGATED CO-COMMISSIONING,ABBEY LANE SURGERY,30537057,"23,961.82"
Department of Health,NHS Sheffield CCG,31/01/2020,C&M-PMS Out of Hours Opt Outs,PRC DELEGATED CO-COMMISSIONING,ABBEY LANE SURGERY,30537057,23.1
Department of Health,NHS Sheffield CCG,31/01/2020,C&M-PMS PCN DES Participation,PRC DELEGATED CO-COMMISSIONING,ABBEY LANE SURGERY,30537057,452.23
Department of Health,NHS Sheffield CCG,31/01/2020,C&M-PMS Prem Notional Rent,PRC DELEGATED CO-COMMISSIONING,ABBEY LANE SURGERY,30537057,"2,122.92"
Department of Health,NHS Sheffield CCG,31/01/2020,C&M-PMS Prem Rates,PRC DELEGATED CO-COMMISSIONING,ABBEY LANE SURGERY,30537057,761
Department of Health,NHS Sheffield CCG,31/01/2020,C&M-PMS Prem Water Rates,PRC DELEGATED CO-COMMISSIONING,ABBEY LANE SURGERY,30537057,70.94
Department of Health,NHS Sheffield CCG,31/01/2020,C&M-PMS QOF Aspiration,PRC DELEGATED CO-COMMISSIONING,ABBEY LANE SURGERY,30537057,"2,636.98"
Department of Health,NHS Sheffield CCG,31/01/2020,C&M-PMS Contract Value,PRC DELEGATED CO-COMMISSIONING,BARNSLEY ROAD SURGERY,30537059,"21,707.99"
Department of Health,NHS Sheffield CCG,31/01/2020,C&M-PMS PCN DES Participation,PRC DELEGATED CO-COMMISSIONING,BARNSLEY ROAD SURGERY,30537059,410.63
Department of Health,NHS Sheffield CCG,31/01/2020,C&M-PMS Prem Notional Rent,PRC DELEGATED CO-COMMISSIONING,BARNSLEY ROAD SURGERY,30537059,"2,652.17"
Department of Health,NHS Sheffield CCG,31/01/2020,C&M-PMS QOF Aspiration,PRC DELEGATED CO-COMMISSIONING,BARNSLEY ROAD SURGERY,30537059,"2,377.21"
Department of Health,NHS Sheffield CCG,31/01/2020,C&M-PMS Contract Value,PRC DELEGATED CO-COMMISSIONING,BIRLEY HEALTH CENTRE,30537061,"64,386.85"
Department of Health,NHS Sheffield CCG,31/01/2020,C&M-PMS PCN DES Participation,PRC DELEGATED CO-COMMISSIONING,BIRLEY HEALTH CENTRE,30537061,"1,209.32"
Department of Health,NHS Sheffield CCG,31/01/2020,C&M-PMS PCO Other,PRC DELEGATED CO-COMMISSIONING,BIRLEY HEALTH CENTRE,30537061,535.9
Department of Health,NHS Sheffield CCG,31/01/2020,C&M-PMS Prem Notional Rent,PRC DELEGATED CO-COMMISSIONING,BIRLEY HEALTH CENTRE,30537061,"7,600.58"
Department of Health,NHS Sheffield CCG,31/01/2020,C&M-PMS Prem Rates,PRC DELEGATED CO-COMMISSIONING,BIRLEY HEALTH CENTRE,30537061,"1,407.00"
Department of Health,NHS Sheffield CCG,31/01/2020,C&M-PMS QOF Aspiration,PRC DELEGATED CO-COMMISSIONING,BIRLEY HEALTH CENTRE,30537061,"7,981.39"
Department of Health,NHS Sheffield CCG,31/01/2020,C&M-PMS Contract Value,PRC DELEGATED CO-COMMISSIONING,BURNCROSS SURGERY,30537062,-400.89
Department of Health,NHS Sheffield CCG,31/01/2020,C&M-PMS GP Statutory Levy,PRC DELEGATED CO-COMMISSIONING,BURNCROSS SURGERY,30537062,-532
Department of Health,NHS Sheffield CCG,31/01/2020,C&M-PMS Contract Value,PRC DELEGATED CO-COMMISSIONING,BURNCROSS SURGERY,30537063,"121,307.81"
Department of Health,NHS Sheffield CCG,31/01/2020,C&M-PMS PCN DES Participation,PRC DELEGATED CO-COMMISSIONING,BURNCROSS SURGERY,30537063,"2,292.15"
Department of Health,NHS Sheffield CCG,31/01/2020,C&M-PMS Prem Notional Rent,PRC DELEGATED CO-COMMISSIONING,BURNCROSS SURGERY,30537063,"14,058.33"
Department of Health,NHS Sheffield CCG,31/01/2020,C&M-PMS QOF Aspiration,PRC DELEGATED CO-COMMISSIONING,BURNCROSS SURGERY,30537063,"15,732.40"
Department of Health,NHS Sheffield CCG,31/01/2020,C&M-PMS Contract Value,PRC DELEGATED CO-COMMISSIONING,BURNGREAVE SURGERY,30537065,"57,511.35"
Department of Health,NHS Sheffield CCG,31/01/2020,C&M-PMS Out of Hours Opt Outs,PRC DELEGATED CO-COMMISSIONING,BURNGREAVE SURGERY,30537065,6.7
Department of Health,NHS Sheffield CCG,31/01/2020,C&M-PMS PCN DES Participation,PRC DELEGATED CO-COMMISSIONING,BURNGREAVE SURGERY,30537065,"1,088.98"
Department of Health,NHS Sheffield CCG,31/01/2020,C&M-PMS Prem Notional Rent,PRC DELEGATED CO-COMMISSIONING,BURNGREAVE SURGERY,30537065,"6,622.92"
Department of Health,NHS Sheffield CCG,31/01/2020,C&M-PMS Prem Rates,PRC DELEGATED CO-COMMISSIONING,BURNGREAVE SURGERY,30537065,"2,140.00"
Department of Health,NHS Sheffield CCG,31/01/2020,C&M-PMS QOF Aspiration,PRC DELEGATED CO-COMMISSIONING,BURNGREAVE SURGERY,30537065,"5,288.96"
Department of Health,NHS Sheffield CCG,31/01/2020,C&M-PMS Contract Value,PRC DELEGATED CO-COMMISSIONING,DEEPCAR MEDICAL CENTRE,30537068,"42,322.95"
Department of Health,NHS Sheffield CCG,31/01/2020,C&M-PMS Out of Hours Opt Outs,PRC DELEGATED CO-COMMISSIONING,DEEPCAR MEDICAL CENTRE,30537068,12.61
Department of Health,NHS Sheffield CCG,31/01/2020,C&M-PMS PCN DES Participation,PRC DELEGATED CO-COMMISSIONING,DEEPCAR MEDICAL CENTRE,30537068,789.85
Department of Health,NHS Sheffield CCG,31/01/2020,C&M-PMS Prem Healthcentre Rent,PRC DELEGATED CO-COMMISSIONING,DEEPCAR MEDICAL CENTRE,30537068,"29,915.44"
Department of Health,NHS Sheffield CCG,31/01/2020,C&M-PMS QOF Aspiration,PRC DELEGATED CO-COMMISSIONING,DEEPCAR MEDICAL CENTRE,30537068,"4,298.67"
Department of Health,NHS Sheffield CCG,31/01/2020,C&M-PMS Contract Value,PRC DELEGATED CO-COMMISSIONING,DOVERCOURT SURGERY,30537070,"73,999.72"
Department of Health,NHS Sheffield CCG,31/01/2020,C&M-PMS Out of Hours Opt Outs,PRC DELEGATED CO-COMMISSIONING,DOVERCOURT SURGERY,30537070,8.4
Department of Health,NHS Sheffield CCG,31/01/2020,C&M-PMS PCN DES Participation,PRC DELEGATED CO-COMMISSIONING,DOVERCOURT SURGERY,30537070,"1,392.36"
Department of Health,NHS Sheffield CCG,31/01/2020,C&M-PMS PCO Other,PRC DELEGATED CO-COMMISSIONING,DOVERCOURT SURGERY,30537070,536.1
Department of Health,NHS Sheffield CCG,31/01/2020,C&M-PMS Prem Actual Rent,PRC DELEGATED CO-COMMISSIONING,DOVERCOURT SURGERY,30537070,"12,400.00"
Department of Health,NHS Sheffield CCG,31/01/2020,C&M-PMS Prem Notional Rent,PRC DELEGATED CO-COMMISSIONING,DOVERCOURT SURGERY,30537070,"1,708.33"
Department of Health,NHS Sheffield CCG,31/01/2020,C&M-PMS QOF Aspiration,PRC DELEGATED CO-COMMISSIONING,DOVERCOURT SURGERY,30537070,"7,675.00"
Department of Health,NHS Sheffield CCG,31/01/2020,C&M-PMS Contract Value,PRC DELEGATED CO-COMMISSIONING,DR MEHROTRA & PARTNER,30537072,"26,575.18"
Department of Health,NHS Sheffield CCG,31/01/2020,C&M-PMS PCN DES Participation,PRC DELEGATED CO-COMMISSIONING,DR MEHROTRA & PARTNER,30537072,501.42
Department of Health,NHS Sheffield CCG,31/01/2020,C&M-PMS PCO Other,PRC DELEGATED CO-COMMISSIONING,DR MEHROTRA & PARTNER,30537072,237.8
Department of Health,NHS Sheffield CCG,31/01/2020,C&M-PMS Prem Actual Rent,PRC DELEGATED CO-COMMISSIONING,DR MEHROTRA & PARTNER,30537072,"2,650.00"
Department of Health,NHS Sheffield CCG,31/01/2020,C&M-PMS Prem Notional Rent,PRC DELEGATED CO-COMMISSIONING,DR MEHROTRA & PARTNER,30537072,"5,157.29"
Department of Health,NHS Sheffield CCG,31/01/2020,C&M-PMS Prem Rates,PRC DELEGATED CO-COMMISSIONING,DR MEHROTRA & PARTNER,30537072,"1,606.00"
Department of Health,NHS Sheffield CCG,31/01/2020,C&M-PMS QOF Aspiration,PRC DELEGATED CO-COMMISSIONING,DR MEHROTRA & PARTNER,30537072,"2,763.65"
Department of Health,NHS Sheffield CCG,31/01/2020,C&M-PMS Contract Value,PRC DELEGATED CO-COMMISSIONING,DR MILNER & PARTNERS,30537074,"76,636.66"
Department of Health,NHS Sheffield CCG,31/01/2020,C&M-PMS Out of Hours Opt Outs,PRC DELEGATED CO-COMMISSIONING,DR MILNER & PARTNERS,30537074,7.01
Department of Health,NHS Sheffield CCG,31/01/2020,C&M-PMS PCN DES Participation,PRC DELEGATED CO-COMMISSIONING,DR MILNER & PARTNERS,30537074,"1,435.93"
Department of Health,NHS Sheffield CCG,31/01/2020,C&M-PMS Prem Actual Rent,PRC DELEGATED CO-COMMISSIONING,DR MILNER & PARTNERS,30537074,"11,382.00"
Department of Health,NHS Sheffield CCG,31/01/2020,C&M-PMS Prem Notional Rent,PRC DELEGATED CO-COMMISSIONING,DR MILNER & PARTNERS,30537074,"4,462.42"
Department of Health,NHS Sheffield CCG,31/01/2020,C&M-PMS Prem Rates,PRC DELEGATED CO-COMMISSIONING,DR MILNER & PARTNERS,30537074,"2,593.00"
Department of Health,NHS Sheffield CCG,31/01/2020,C&M-PMS QOF Aspiration,PRC DELEGATED CO-COMMISSIONING,DR MILNER & PARTNERS,30537074,"6,513.90"
Department of Health,NHS Sheffield CCG,31/01/2020,C&M-PMS Contract Value,PRC DELEGATED CO-COMMISSIONING,DUNNINC ROAD SURGERY,30537075,"23,890.16"
Department of Health,NHS Sheffield CCG,31/01/2020,C&M-PMS PCN DES Participation,PRC DELEGATED CO-COMMISSIONING,DUNNINC ROAD SURGERY,30537075,448.76
Department of Health,NHS Sheffield CCG,31/01/2020,C&M-PMS Prem Notional Rent,PRC DELEGATED CO-COMMISSIONING,DUNNINC ROAD SURGERY,30537075,"1,695.83"
Department of Health,NHS Sheffield CCG,31/01/2020,C&M-PMS QOF Aspiration,PRC DELEGATED CO-COMMISSIONING,DUNNINC ROAD SURGERY,30537075,"2,054.91"
Department of Health,NHS Sheffield CCG,31/01/2020,C&M-PMS Contract Value,PRC DELEGATED CO-COMMISSIONING,DYKES HALL MEDICAL CENTRE,30537077,"73,074.51"
Department of Health,NHS Sheffield CCG,31/01/2020,C&M-PMS DES Extended Hours Access,PRC DELEGATED CO-COMMISSIONING,DYKES HALL MEDICAL CENTRE,30537077,"4,412.49"
Department of Health,NHS Sheffield CCG,31/01/2020,C&M-PMS Out of Hours Opt Outs,PRC DELEGATED CO-COMMISSIONING,DYKES HALL MEDICAL CENTRE,30537077,35.76
Department of Health,NHS Sheffield CCG,31/01/2020,C&M-PMS PCN DES Clinical Director,PRC DELEGATED CO-COMMISSIONING,DYKES HALL MEDICAL CENTRE,30537077,"2,063.71"
Department of Health,NHS Sheffield CCG,31/01/2020,C&M-PMS PCN DES PCN support,LOCAL ENHANCED SERVICES,DYKES HALL MEDICAL CENTRE,30537077,"4,516.88"
Department of Health,NHS Sheffield CCG,31/01/2020,C&M-PMS PCN DES Participation,PRC DELEGATED CO-COMMISSIONING,DYKES HALL MEDICAL CENTRE,30537077,"1,386.86"
Department of Health,NHS Sheffield CCG,31/01/2020,C&M-PMS Prem Notional Rent,PRC DELEGATED CO-COMMISSIONING,DYKES HALL MEDICAL CENTRE,30537077,"5,377.08"
Department of Health,NHS Sheffield CCG,31/01/2020,C&M-PMS Prem Rates,PRC DELEGATED CO-COMMISSIONING,DYKES HALL MEDICAL CENTRE,30537077,"11,690.35"
Department of Health,NHS Sheffield CCG,31/01/2020,C&M-PMS Prem Water Rates,PRC DELEGATED CO-COMMISSIONING,DYKES HALL MEDICAL CENTRE,30537077,"1,665.76"
Department of Health,NHS Sheffield CCG,31/01/2020,C&M-PMS QOF Aspiration,PRC DELEGATED CO-COMMISSIONING,DYKES HALL MEDICAL CENTRE,30537077,"8,323.49"
Department of Health,NHS Sheffield CCG,31/01/2020,C&M-PMS Contract Value,PRC DELEGATED CO-COMMISSIONING,EAST BANK MEDICAL CENTRE,30537079,"49,348.01"
Department of Health,NHS Sheffield CCG,31/01/2020,C&M-PMS PCN DES Participation,PRC DELEGATED CO-COMMISSIONING,EAST BANK MEDICAL CENTRE,30537079,914.08
Department of Health,NHS Sheffield CCG,31/01/2020,C&M-PMS Prem Notional Rent,PRC DELEGATED CO-COMMISSIONING,EAST BANK MEDICAL CENTRE,30537079,"10,583.33"
Department of Health,NHS Sheffield CCG,31/01/2020,C&M-PMS Prem Rates,PRC DELEGATED CO-COMMISSIONING,EAST BANK MEDICAL CENTRE,30537079,"2,898.00"
Department of Health,NHS Sheffield CCG,31/01/2020,C&M-PMS QOF Aspiration,PRC DELEGATED CO-COMMISSIONING,EAST BANK MEDICAL CENTRE,30537079,"5,026.31"
Department of Health,NHS Sheffield CCG,31/01/2020,C&M-PMS Contract Value,PRC DELEGATED CO-COMMISSIONING,FIRTH PARK SURGERY,30537080,-484.68
Department of Health,NHS Sheffield CCG,31/01/2020,C&M-PMS GP Statutory Levy,PRC DELEGATED CO-COMMISSIONING,FIRTH PARK SURGERY,30537080,-352.31
Department of Health,NHS Sheffield CCG,31/01/2020,C&M-PMS Out of Hours Opt Outs,PRC DELEGATED CO-COMMISSIONING,FIRTH PARK SURGERY,30537080,"-3,617.62"
Department of Health,NHS Sheffield CCG,31/01/2020,C&M-PMS Contract Value,PRC DELEGATED CO-COMMISSIONING,FIRTH PARK SURGERY,30537081,"74,885.12"
Department of Health,NHS Sheffield CCG,31/01/2020,C&M-PMS Out of Hours Opt Outs,PRC DELEGATED CO-COMMISSIONING,FIRTH PARK SURGERY,30537081,23.41
Department of Health,NHS Sheffield CCG,31/01/2020,C&M-PMS PCN DES Participation,PRC DELEGATED CO-COMMISSIONING,FIRTH PARK SURGERY,30537081,"1,468.51"
Department of Health,NHS Sheffield CCG,31/01/2020,C&M-PMS Prem Notional Rent,PRC DELEGATED CO-COMMISSIONING,FIRTH PARK SURGERY,30537081,"4,500.00"
Department of Health,NHS Sheffield CCG,31/01/2020,C&M-PMS Prem Rates,PRC DELEGATED CO-COMMISSIONING,FIRTH PARK SURGERY,30537081,"1,360.00"
Department of Health,NHS Sheffield CCG,31/01/2020,C&M-PMS Prem Water Rates,PRC DELEGATED CO-COMMISSIONING,FIRTH PARK SURGERY,30537081,195.36
Department of Health,NHS Sheffield CCG,31/01/2020,C&M-PMS QOF Aspiration,PRC DELEGATED CO-COMMISSIONING,FIRTH PARK SURGERY,30537081,"7,493.92"
Department of Health,NHS Sheffield CCG,31/01/2020,C&M-PMS Contract Value,PRC DELEGATED CO-COMMISSIONING,FALKLAND HOUSE,30537083,"26,085.22"
Department of Health,NHS Sheffield CCG,31/01/2020,C&M-PMS Out of Hours Opt Outs,PRC DELEGATED CO-COMMISSIONING,FALKLAND HOUSE,30537083,2.72
Department of Health,NHS Sheffield CCG,31/01/2020,C&M-PMS PCN DES Participation,PRC DELEGATED CO-COMMISSIONING,FALKLAND HOUSE,30537083,495.54
Department of Health,NHS Sheffield CCG,31/01/2020,C&M-PMS PCO Other,PRC DELEGATED CO-COMMISSIONING,FALKLAND HOUSE,30537083,276.4
Department of Health,NHS Sheffield CCG,31/01/2020,C&M-PMS Prem Notional Rent,PRC DELEGATED CO-COMMISSIONING,FALKLAND HOUSE,30537083,"1,866.67"
Department of Health,NHS Sheffield CCG,31/01/2020,C&M-PMS Prem Rates,PRC DELEGATED CO-COMMISSIONING,FALKLAND HOUSE,30537083,773
Department of Health,NHS Sheffield CCG,31/01/2020,C&M-PMS QOF Aspiration,PRC DELEGATED CO-COMMISSIONING,FALKLAND HOUSE,30537083,"2,925.24"
Department of Health,NHS Sheffield CCG,31/01/2020,C&M-PMS Contract Value,PRC DELEGATED CO-COMMISSIONING,GLEADLESS MEDICAL CENTRE,30537085,"69,304.42"
Department of Health,NHS Sheffield CCG,31/01/2020,C&M-PMS Out of Hours Opt Outs,PRC DELEGATED CO-COMMISSIONING,GLEADLESS MEDICAL CENTRE,30537085,1.29
Department of Health,NHS Sheffield CCG,31/01/2020,C&M-PMS PCN DES Participation,PRC DELEGATED CO-COMMISSIONING,GLEADLESS MEDICAL CENTRE,30537085,"1,300.70"
Department of Health,NHS Sheffield CCG,31/01/2020,C&M-PMS PCO Other,PRC DELEGATED CO-COMMISSIONING,GLEADLESS MEDICAL CENTRE,30537085,551.4
Department of Health,NHS Sheffield CCG,31/01/2020,C&M-PMS Prem Notional Rent,PRC DELEGATED CO-COMMISSIONING,GLEADLESS MEDICAL CENTRE,30537085,"6,750.00"
Department of Health,NHS Sheffield CCG,31/01/2020,C&M-PMS Prem Rates,PRC DELEGATED CO-COMMISSIONING,GLEADLESS MEDICAL CENTRE,30537085,"1,657.00"
Department of Health,NHS Sheffield CCG,31/01/2020,C&M-PMS Prem Water Rates,PRC DELEGATED CO-COMMISSIONING,GLEADLESS MEDICAL CENTRE,30537085,259.17
Department of Health,NHS Sheffield CCG,31/01/2020,C&M-PMS QOF Aspiration,PRC DELEGATED CO-COMMISSIONING,GLEADLESS MEDICAL CENTRE,30537085,"7,710.90"
Department of Health,NHS Sheffield CCG,31/01/2020,C&M-PMS Contract Value,PRC DELEGATED CO-COMMISSIONING,HACKENTHORPE MEDICAL CENTRE,30537087,"49,166.53"
Department of Health,NHS Sheffield CCG,31/01/2020,C&M-PMS PCN DES Participation,PRC DELEGATED CO-COMMISSIONING,HACKENTHORPE MEDICAL CENTRE,30537087,926.86
Department of Health,NHS Sheffield CCG,31/01/2020,C&M-PMS PCO Other,PRC DELEGATED CO-COMMISSIONING,HACKENTHORPE MEDICAL CENTRE,30537087,435.2
Department of Health,NHS Sheffield CCG,31/01/2020,C&M-PMS Prem Notional Rent,PRC DELEGATED CO-COMMISSIONING,HACKENTHORPE MEDICAL CENTRE,30537087,"5,116.67"
Department of Health,NHS Sheffield CCG,31/01/2020,C&M-PMS Prem Rates,PRC DELEGATED CO-COMMISSIONING,HACKENTHORPE MEDICAL CENTRE,30537087,"1,363.00"
Department of Health,NHS Sheffield CCG,31/01/2020,C&M-PMS QOF Aspiration,PRC DELEGATED CO-COMMISSIONING,HACKENTHORPE MEDICAL CENTRE,30537087,"6,528.39"
Department of Health,NHS Sheffield CCG,31/01/2020,C&M-PMS Contract Value,PRC DELEGATED CO-COMMISSIONING,JAUNTY SPRINGS HEALTH CENTRE,30537089,"31,192.54"
Department of Health,NHS Sheffield CCG,31/01/2020,C&M-PMS DES Extended Hours Access,PRC DELEGATED CO-COMMISSIONING,JAUNTY SPRINGS HEALTH CENTRE,30537089,"4,210.64"
Department of Health,NHS Sheffield CCG,31/01/2020,C&M-PMS Out of Hours Opt Outs,PRC DELEGATED CO-COMMISSIONING,JAUNTY SPRINGS HEALTH CENTRE,30537089,0.17
Department of Health,NHS Sheffield CCG,31/01/2020,C&M-PMS PCN DES Clinical Director,PRC DELEGATED CO-COMMISSIONING,JAUNTY SPRINGS HEALTH CENTRE,30537089,"1,969.31"
Department of Health,NHS Sheffield CCG,31/01/2020,C&M-PMS PCN DES PCN support,LOCAL ENHANCED SERVICES,JAUNTY SPRINGS HEALTH CENTRE,30537089,"4,310.25"
Department of Health,NHS Sheffield CCG,31/01/2020,C&M-PMS PCN DES Participation,PRC DELEGATED CO-COMMISSIONING,JAUNTY SPRINGS HEALTH CENTRE,30537089,583.08
Department of Health,NHS Sheffield CCG,31/01/2020,C&M-PMS PCO Other,PRC DELEGATED CO-COMMISSIONING,JAUNTY SPRINGS HEALTH CENTRE,30537089,263.6
Department of Health,NHS Sheffield CCG,31/01/2020,C&M-PMS Prem Notional Rent,PRC DELEGATED CO-COMMISSIONING,JAUNTY SPRINGS HEALTH CENTRE,30537089,"3,208.33"
Department of Health,NHS Sheffield CCG,31/01/2020,C&M-PMS Prem Rates,PRC DELEGATED CO-COMMISSIONING,JAUNTY SPRINGS HEALTH CENTRE,30537089,710
Department of Health,NHS Sheffield CCG,31/01/2020,C&M-PMS Prem Water Rates,PRC DELEGATED CO-COMMISSIONING,JAUNTY SPRINGS HEALTH CENTRE,30537089,65.82
Department of Health,NHS Sheffield CCG,31/01/2020,C&M-PMS QOF Aspiration,PRC DELEGATED CO-COMMISSIONING,JAUNTY SPRINGS HEALTH CENTRE,30537089,"4,020.11"
Department of Health,NHS Sheffield CCG,31/01/2020,C&M-PMS Contract Value,PRC DELEGATED CO-COMMISSIONING,MEADOWHEAD GROUP PRACTICE,30537091,"74,447.56"
Department of Health,NHS Sheffield CCG,31/01/2020,C&M-PMS Out of Hours Opt Outs,PRC DELEGATED CO-COMMISSIONING,MEADOWHEAD GROUP PRACTICE,30537091,20.35
Department of Health,NHS Sheffield CCG,31/01/2020,C&M-PMS PCN DES Participation,PRC DELEGATED CO-COMMISSIONING,MEADOWHEAD GROUP PRACTICE,30537091,"1,403.48"
Department of Health,NHS Sheffield CCG,31/01/2020,C&M-PMS Prem Cost Rent,PRC DELEGATED CO-COMMISSIONING,MEADOWHEAD GROUP PRACTICE,30537091,"3,647.42"
Department of Health,NHS Sheffield CCG,31/01/2020,C&M-PMS Prem Notional Rent,PRC DELEGATED CO-COMMISSIONING,MEADOWHEAD GROUP PRACTICE,30537091,"3,358.33"
Department of Health,NHS Sheffield CCG,31/01/2020,C&M-PMS Prem Rates,PRC DELEGATED CO-COMMISSIONING,MEADOWHEAD GROUP PRACTICE,30537091,"1,870.00"
Department of Health,NHS Sheffield CCG,31/01/2020,C&M-PMS QOF Aspiration,PRC DELEGATED CO-COMMISSIONING,MEADOWHEAD GROUP PRACTICE,30537091,"9,076.52"
Department of Health,NHS Sheffield CCG,31/01/2020,C&M-PMS Contract Value,PRC DELEGATED CO-COMMISSIONING,MANCHESTER ROAD SURGERY SHEFFIELD,30537093,"33,108.94"
Department of Health,NHS Sheffield CCG,31/01/2020,C&M-PMS PCN DES Participation,PRC DELEGATED CO-COMMISSIONING,MANCHESTER ROAD SURGERY SHEFFIELD,30537093,618.32
Department of Health,NHS Sheffield CCG,31/01/2020,C&M-PMS Prem Cost Rent,PRC DELEGATED CO-COMMISSIONING,MANCHESTER ROAD SURGERY SHEFFIELD,30537093,"3,472.17"
Department of Health,NHS Sheffield CCG,31/01/2020,C&M-PMS Prem Notional Rent,PRC DELEGATED CO-COMMISSIONING,MANCHESTER ROAD SURGERY SHEFFIELD,30537093,442.92
Department of Health,NHS Sheffield CCG,31/01/2020,C&M-PMS Prem Rates,PRC DELEGATED CO-COMMISSIONING,MANCHESTER ROAD SURGERY SHEFFIELD,30537093,970
Department of Health,NHS Sheffield CCG,31/01/2020,C&M-PMS Prem Water Rates,PRC DELEGATED CO-COMMISSIONING,MANCHESTER ROAD SURGERY SHEFFIELD,30537093,144.37
Department of Health,NHS Sheffield CCG,31/01/2020,C&M-PMS QOF Aspiration,PRC DELEGATED CO-COMMISSIONING,MANCHESTER ROAD SURGERY SHEFFIELD,30537093,"3,985.36"
Department of Health,NHS Sheffield CCG,31/01/2020,C&M-PMS Contract Value,PRC DELEGATED CO-COMMISSIONING,MOSBOROUGH HEALTH CENTRE,30537095,"50,263.61"
Department of Health,NHS Sheffield CCG,31/01/2020,C&M-PMS PCN DES Participation,PRC DELEGATED CO-COMMISSIONING,MOSBOROUGH HEALTH CENTRE,30537095,927.38
Department of Health,NHS Sheffield CCG,31/01/2020,C&M-PMS PCO Other,PRC DELEGATED CO-COMMISSIONING,MOSBOROUGH HEALTH CENTRE,30537095,432.2
Department of Health,NHS Sheffield CCG,31/01/2020,C&M-PMS Prem Notional Rent,PRC DELEGATED CO-COMMISSIONING,MOSBOROUGH HEALTH CENTRE,30537095,"4,091.67"
Department of Health,NHS Sheffield CCG,31/01/2020,C&M-PMS Prem Rates,PRC DELEGATED CO-COMMISSIONING,MOSBOROUGH HEALTH CENTRE,30537095,"1,105.00"
Department of Health,NHS Sheffield CCG,31/01/2020,C&M-PMS QOF Aspiration,PRC DELEGATED CO-COMMISSIONING,MOSBOROUGH HEALTH CENTRE,30537095,"5,736.56"
Department of Health,NHS Sheffield CCG,31/01/2020,C&M-PMS Contract Value,PRC DELEGATED CO-COMMISSIONING,NETHERGREEN SURGERY,30537097,"63,791.23"
Department of Health,NHS Sheffield CCG,31/01/2020,C&M-PMS Out of Hours Opt Outs,PRC DELEGATED CO-COMMISSIONING,NETHERGREEN SURGERY,30537097,4.67
Department of Health,NHS Sheffield CCG,31/01/2020,C&M-PMS PCN DES Participation,PRC DELEGATED CO-COMMISSIONING,NETHERGREEN SURGERY,30537097,"1,208.31"
Department of Health,NHS Sheffield CCG,31/01/2020,C&M-PMS Prem Cost Rent,PRC DELEGATED CO-COMMISSIONING,NETHERGREEN SURGERY,30537097,"5,057.33"
Department of Health,NHS Sheffield CCG,31/01/2020,C&M-PMS Prem Rates,PRC DELEGATED CO-COMMISSIONING,NETHERGREEN SURGERY,30537097,"1,264.00"
Department of Health,NHS Sheffield CCG,31/01/2020,C&M-PMS QOF Aspiration,PRC DELEGATED CO-COMMISSIONING,NETHERGREEN SURGERY,30537097,"6,406.79"
Department of Health,NHS Sheffield CCG,31/01/2020,C&M-PMS Contract Value,PRC DELEGATED CO-COMMISSIONING,OWLTHORPE MEDICAL CENTRE,30537099,"33,441.80"
Department of Health,NHS Sheffield CCG,31/01/2020,C&M-PMS Out of Hours Opt Outs,PRC DELEGATED CO-COMMISSIONING,OWLTHORPE MEDICAL CENTRE,30537099,11.91
Department of Health,NHS Sheffield CCG,31/01/2020,C&M-PMS PCN DES Participation,PRC DELEGATED CO-COMMISSIONING,OWLTHORPE MEDICAL CENTRE,30537099,639.06
Department of Health,NHS Sheffield CCG,31/01/2020,C&M-PMS PCO Other,PRC DELEGATED CO-COMMISSIONING,OWLTHORPE MEDICAL CENTRE,30537099,309.2
Department of Health,NHS Sheffield CCG,31/01/2020,C&M-PMS Prem Actual Rent,PRC DELEGATED CO-COMMISSIONING,OWLTHORPE MEDICAL CENTRE,30537099,"7,539.58"
Department of Health,NHS Sheffield CCG,31/01/2020,C&M-PMS Prem Rates,PRC DELEGATED CO-COMMISSIONING,OWLTHORPE MEDICAL CENTRE,30537099,"1,316.00"
Department of Health,NHS Sheffield CCG,31/01/2020,C&M-PMS Prem Water Rates,PRC DELEGATED CO-COMMISSIONING,OWLTHORPE MEDICAL CENTRE,30537099,70.22
Department of Health,NHS Sheffield CCG,31/01/2020,C&M-PMS QOF Aspiration,PRC DELEGATED CO-COMMISSIONING,OWLTHORPE MEDICAL CENTRE,30537099,"3,873.48"
Department of Health,NHS Sheffield CCG,31/01/2020,C&M-PMS Contract Value,PRC DELEGATED CO-COMMISSIONING,PAGE HALL MEDICAL CENTRE,30537101,"57,398.70"
Department of Health,NHS Sheffield CCG,31/01/2020,C&M-PMS DES Learn Dsblty Hlth Chk,PRC DELEGATED CO-COMMISSIONING,PAGE HALL MEDICAL CENTRE,30537101,"1,120.00"
Department of Health,NHS Sheffield CCG,31/01/2020,C&M-PMS Out of Hours Opt Outs,PRC DELEGATED CO-COMMISSIONING,PAGE HALL MEDICAL CENTRE,30537101,20.84
Department of Health,NHS Sheffield CCG,31/01/2020,C&M-PMS PCN DES Participation,PRC DELEGATED CO-COMMISSIONING,PAGE HALL MEDICAL CENTRE,30537101,"1,083.01"
Department of Health,NHS Sheffield CCG,31/01/2020,C&M-PMS PCO Other,PRC DELEGATED CO-COMMISSIONING,PAGE HALL MEDICAL CENTRE,30537101,495.1
Department of Health,NHS Sheffield CCG,31/01/2020,C&M-PMS Prem Notional Rent,PRC DELEGATED CO-COMMISSIONING,PAGE HALL MEDICAL CENTRE,30537101,"4,833.33"
Department of Health,NHS Sheffield CCG,31/01/2020,C&M-PMS Prem Rates,PRC DELEGATED CO-COMMISSIONING,PAGE HALL MEDICAL CENTRE,30537101,"1,077.00"
Department of Health,NHS Sheffield CCG,31/01/2020,C&M-PMS QOF Aspiration,PRC DELEGATED CO-COMMISSIONING,PAGE HALL MEDICAL CENTRE,30537101,"4,558.05"
Department of Health,NHS Sheffield CCG,31/01/2020,C&M-PMS Contract Value,PRC DELEGATED CO-COMMISSIONING,PORTER BROOK MEDICAL CENTRE,30537102,"-6,328.21"
Department of Health,NHS Sheffield CCG,31/01/2020,C&M-PMS GP Statutory Levy,PRC DELEGATED CO-COMMISSIONING,PORTER BROOK MEDICAL CENTRE,30537102,-989.17
Department of Health,NHS Sheffield CCG,31/01/2020,C&M-PMS Out of Hours Opt Outs,PRC DELEGATED CO-COMMISSIONING,PORTER BROOK MEDICAL CENTRE,30537102,"-8,210.37"
Department of Health,NHS Sheffield CCG,31/01/2020,C&M-PMS Contract Value,PRC DELEGATED CO-COMMISSIONING,PORTER BROOK MEDICAL CENTRE,30537103,"176,064.97"
Department of Health,NHS Sheffield CCG,31/01/2020,C&M-PMS Out of Hours Opt Outs,PRC DELEGATED CO-COMMISSIONING,PORTER BROOK MEDICAL CENTRE,30537103,295.37
Department of Health,NHS Sheffield CCG,31/01/2020,C&M-PMS PCN DES Participation,PRC DELEGATED CO-COMMISSIONING,PORTER BROOK MEDICAL CENTRE,30537103,"3,163.47"
Department of Health,NHS Sheffield CCG,31/01/2020,C&M-PMS PCO Other,PRC DELEGATED CO-COMMISSIONING,PORTER BROOK MEDICAL CENTRE,30537103,"1,730.30"
Department of Health,NHS Sheffield CCG,31/01/2020,C&M-PMS Prem Actual Rent,PRC DELEGATED CO-COMMISSIONING,PORTER BROOK MEDICAL CENTRE,30537103,"1,666.66"
Department of Health,NHS Sheffield CCG,31/01/2020,C&M-PMS Prem Notional Rent,PRC DELEGATED CO-COMMISSIONING,PORTER BROOK MEDICAL CENTRE,30537103,"9,666.67"
Department of Health,NHS Sheffield CCG,31/01/2020,C&M-PMS Prem Rates,PRC DELEGATED CO-COMMISSIONING,PORTER BROOK MEDICAL CENTRE,30537103,"2,271.00"
Department of Health,NHS Sheffield CCG,31/01/2020,C&M-PMS Prem Water Rates,PRC DELEGATED CO-COMMISSIONING,PORTER BROOK MEDICAL CENTRE,30537103,244.72
Department of Health,NHS Sheffield CCG,31/01/2020,C&M-PMS QOF Aspiration,PRC DELEGATED CO-COMMISSIONING,PORTER BROOK MEDICAL CENTRE,30537103,"8,838.31"
Department of Health,NHS Sheffield CCG,31/01/2020,C&M-PMS Contract Value,PRC DELEGATED CO-COMMISSIONING,RICHMOND MEDICAL CENTRE,30537105,"67,613.83"
Department of Health,NHS Sheffield CCG,31/01/2020,C&M-PMS PCN DES Participation,PRC DELEGATED CO-COMMISSIONING,RICHMOND MEDICAL CENTRE,30537105,"1,271.70"
Department of Health,NHS Sheffield CCG,31/01/2020,C&M-PMS PCO Other,PRC DELEGATED CO-COMMISSIONING,RICHMOND MEDICAL CENTRE,30537105,561.5
Department of Health,NHS Sheffield CCG,31/01/2020,C&M-PMS Prem Notional Rent,PRC DELEGATED CO-COMMISSIONING,RICHMOND MEDICAL CENTRE,30537105,"4,731.00"
Department of Health,NHS Sheffield CCG,31/01/2020,C&M-PMS Prem Rates,PRC DELEGATED CO-COMMISSIONING,RICHMOND MEDICAL CENTRE,30537105,"1,259.00"
Department of Health,NHS Sheffield CCG,31/01/2020,C&M-PMS QOF Aspiration,PRC DELEGATED CO-COMMISSIONING,RICHMOND MEDICAL CENTRE,30537105,"8,208.20"
Department of Health,NHS Sheffield CCG,31/01/2020,C&M-PMS Contract Value,PRC DELEGATED CO-COMMISSIONING,RUSTLINGS ROAD MEDICAL CENTRE,30537109,"28,425.84"
Department of Health,NHS Sheffield CCG,31/01/2020,C&M-PMS PCN DES Participation,PRC DELEGATED CO-COMMISSIONING,RUSTLINGS ROAD MEDICAL CENTRE,30537109,527.62
Department of Health,NHS Sheffield CCG,31/01/2020,C&M-PMS PCO Other,PRC DELEGATED CO-COMMISSIONING,RUSTLINGS ROAD MEDICAL CENTRE,30537109,313.8
Department of Health,NHS Sheffield CCG,31/01/2020,C&M-PMS Prem Notional Rent,PRC DELEGATED CO-COMMISSIONING,RUSTLINGS ROAD MEDICAL CENTRE,30537109,"1,312.50"
Department of Health,NHS Sheffield CCG,31/01/2020,C&M-PMS Prem Water Rates,PRC DELEGATED CO-COMMISSIONING,RUSTLINGS ROAD MEDICAL CENTRE,30537109,58.03
Department of Health,NHS Sheffield CCG,31/01/2020,C&M-PMS QOF Aspiration,PRC DELEGATED CO-COMMISSIONING,RUSTLINGS ROAD MEDICAL CENTRE,30537109,"2,653.37"
Department of Health,NHS Sheffield CCG,31/01/2020,C&M-PMS Contract Value,PRC DELEGATED CO-COMMISSIONING,SOTHALL MEDICAL CENTRE,30537112,"71,918.09"
Department of Health,NHS Sheffield CCG,31/01/2020,C&M-PMS Out of Hours Opt Outs,PRC DELEGATED CO-COMMISSIONING,SOTHALL MEDICAL CENTRE,30537112,15
Department of Health,NHS Sheffield CCG,31/01/2020,C&M-PMS PCN DES Participation,PRC DELEGATED CO-COMMISSIONING,SOTHALL MEDICAL CENTRE,30537112,"1,351.91"
Department of Health,NHS Sheffield CCG,31/01/2020,C&M-PMS PCO Other,PRC DELEGATED CO-COMMISSIONING,SOTHALL MEDICAL CENTRE,30537112,627.6
Department of Health,NHS Sheffield CCG,31/01/2020,C&M-PMS Prem Notional Rent,PRC DELEGATED CO-COMMISSIONING,SOTHALL MEDICAL CENTRE,30537112,"5,116.67"
Department of Health,NHS Sheffield CCG,31/01/2020,C&M-PMS Prem Rates,PRC DELEGATED CO-COMMISSIONING,SOTHALL MEDICAL CENTRE,30537112,"1,412.00"
Department of Health,NHS Sheffield CCG,31/01/2020,C&M-PMS Prem Water Rates,PRC DELEGATED CO-COMMISSIONING,SOTHALL MEDICAL CENTRE,30537112,109.72
Department of Health,NHS Sheffield CCG,31/01/2020,C&M-PMS QOF Aspiration,PRC DELEGATED CO-COMMISSIONING,SOTHALL MEDICAL CENTRE,30537112,"8,630.52"
Department of Health,NHS Sheffield CCG,31/01/2020,C&M-PMS Contract Value,PRC DELEGATED CO-COMMISSIONING,SOUTHEY GREEN MEDICAL CENTRE,30537114,"25,187.78"
Department of Health,NHS Sheffield CCG,31/01/2020,C&M-PMS Out of Hours Opt Outs,PRC DELEGATED CO-COMMISSIONING,SOUTHEY GREEN MEDICAL CENTRE,30537114,8.62
Department of Health,NHS Sheffield CCG,31/01/2020,C&M-PMS PCN DES Participation,PRC DELEGATED CO-COMMISSIONING,SOUTHEY GREEN MEDICAL CENTRE,30537114,475.68
Department of Health,NHS Sheffield CCG,31/01/2020,C&M-PMS PCO Other,PRC DELEGATED CO-COMMISSIONING,SOUTHEY GREEN MEDICAL CENTRE,30537114,"2,178.00"
Department of Health,NHS Sheffield CCG,31/01/2020,C&M-PMS Prem Notional Rent,PRC DELEGATED CO-COMMISSIONING,SOUTHEY GREEN MEDICAL CENTRE,30537114,"3,362.50"
Department of Health,NHS Sheffield CCG,31/01/2020,C&M-PMS Prem Rates,PRC DELEGATED CO-COMMISSIONING,SOUTHEY GREEN MEDICAL CENTRE,30537114,"11,784.00"
Department of Health,NHS Sheffield CCG,31/01/2020,C&M-PMS QOF Aspiration,PRC DELEGATED CO-COMMISSIONING,SOUTHEY GREEN MEDICAL CENTRE,30537114,"2,668.69"
Department of Health,NHS Sheffield CCG,31/01/2020,C&M-PMS Contract Value,PRC DELEGATED CO-COMMISSIONING,UNIVERSITY HEALTH SERVICE,30537117,"-11,798.15"
Department of Health,NHS Sheffield CCG,31/01/2020,C&M-PMS DES Extended Hours Access,PRC DELEGATED CO-COMMISSIONING,UNIVERSITY HEALTH SERVICE,30537117,"-4,573.92"
Department of Health,NHS Sheffield CCG,31/01/2020,C&M-PMS GP Statutory Levy,PRC DELEGATED CO-COMMISSIONING,UNIVERSITY HEALTH SERVICE,30537117,"-1,224.13"
Department of Health,NHS Sheffield CCG,31/01/2020,C&M-PMS Out of Hours Opt Outs,PRC DELEGATED CO-COMMISSIONING,UNIVERSITY HEALTH SERVICE,30537117,"-10,308.61"
Department of Health,NHS Sheffield CCG,31/01/2020,C&M-PMS PCN DES Clinical Director,PRC DELEGATED CO-COMMISSIONING,UNIVERSITY HEALTH SERVICE,30537117,"-2,139.21"
Department of Health,NHS Sheffield CCG,31/01/2020,C&M-PMS PCN DES PCN support,LOCAL ENHANCED SERVICES,UNIVERSITY HEALTH SERVICE,30537117,"-4,682.13"
Department of Health,NHS Sheffield CCG,31/01/2020,C&M-PMS Contract Value,PRC DELEGATED CO-COMMISSIONING,UNIVERSITY HEALTH SERVICE,30537118,"213,199.28"
Department of Health,NHS Sheffield CCG,31/01/2020,C&M-PMS DES Extended Hours Access,PRC DELEGATED CO-COMMISSIONING,UNIVERSITY HEALTH SERVICE,30537118,"4,573.92"
Department of Health,NHS Sheffield CCG,31/01/2020,C&M-PMS Out of Hours Opt Outs,PRC DELEGATED CO-COMMISSIONING,UNIVERSITY HEALTH SERVICE,30537118,572.06
Department of Health,NHS Sheffield CCG,31/01/2020,C&M-PMS PCN DES Clinical Director,PRC DELEGATED CO-COMMISSIONING,UNIVERSITY HEALTH SERVICE,30537118,"2,139.21"
Department of Health,NHS Sheffield CCG,31/01/2020,C&M-PMS PCN DES PCN support,LOCAL ENHANCED SERVICES,UNIVERSITY HEALTH SERVICE,30537118,"4,682.13"
Department of Health,NHS Sheffield CCG,31/01/2020,C&M-PMS PCN DES Participation,PRC DELEGATED CO-COMMISSIONING,UNIVERSITY HEALTH SERVICE,30537118,"3,535.52"
Department of Health,NHS Sheffield CCG,31/01/2020,C&M-PMS Prem Notional Rent,PRC DELEGATED CO-COMMISSIONING,UNIVERSITY HEALTH SERVICE,30537118,"15,833.33"
Department of Health,NHS Sheffield CCG,31/01/2020,C&M-PMS QOF Aspiration,PRC DELEGATED CO-COMMISSIONING,UNIVERSITY HEALTH SERVICE,30537118,"4,031.41"
Department of Health,NHS Sheffield CCG,31/01/2020,C&M-PMS Contract Value,PRC DELEGATED CO-COMMISSIONING,VALLEY MEDICAL CENTRE,30537121,"79,516.07"
Department of Health,NHS Sheffield CCG,31/01/2020,C&M-PMS DES Extended Hours Access,PRC DELEGATED CO-COMMISSIONING,VALLEY MEDICAL CENTRE,30537121,"2,533.07"
Department of Health,NHS Sheffield CCG,31/01/2020,C&M-PMS PCN DES Clinical Director,PRC DELEGATED CO-COMMISSIONING,VALLEY MEDICAL CENTRE,30537121,"1,184.71"
Department of Health,NHS Sheffield CCG,31/01/2020,C&M-PMS PCN DES PCN support,LOCAL ENHANCED SERVICES,VALLEY MEDICAL CENTRE,30537121,"2,593.00"
Department of Health,NHS Sheffield CCG,31/01/2020,C&M-PMS PCN DES Participation,PRC DELEGATED CO-COMMISSIONING,VALLEY MEDICAL CENTRE,30537121,"1,492.89"
Department of Health,NHS Sheffield CCG,31/01/2020,C&M-PMS Prem Rates,PRC DELEGATED CO-COMMISSIONING,VALLEY MEDICAL CENTRE,30537121,"1,664.00"
Department of Health,NHS Sheffield CCG,31/01/2020,C&M-PMS QOF Aspiration,PRC DELEGATED CO-COMMISSIONING,VALLEY MEDICAL CENTRE,30537121,"8,453.91"
Department of Health,NHS Sheffield CCG,31/01/2020,C&M-PMS Contract Value,PRC DELEGATED CO-COMMISSIONING,WOODHOUSE HEALTH CENTRE,30537123,"101,457.37"
Department of Health,NHS Sheffield CCG,31/01/2020,C&M-PMS Out of Hours Opt Outs,PRC DELEGATED CO-COMMISSIONING,WOODHOUSE HEALTH CENTRE,30537123,8.54
Department of Health,NHS Sheffield CCG,31/01/2020,C&M-PMS PCN DES Participation,PRC DELEGATED CO-COMMISSIONING,WOODHOUSE HEALTH CENTRE,30537123,"1,906.58"
Department of Health,NHS Sheffield CCG,31/01/2020,C&M-PMS PCO Other,PRC DELEGATED CO-COMMISSIONING,WOODHOUSE HEALTH CENTRE,30537123,746.4
Department of Health,NHS Sheffield CCG,31/01/2020,C&M-PMS Prem Notional Rent,PRC DELEGATED CO-COMMISSIONING,WOODHOUSE HEALTH CENTRE,30537123,"6,338.58"
Department of Health,NHS Sheffield CCG,31/01/2020,C&M-PMS Prem Rates,PRC DELEGATED CO-COMMISSIONING,WOODHOUSE HEALTH CENTRE,30537123,"1,757.00"
Department of Health,NHS Sheffield CCG,31/01/2020,C&M-PMS QOF Aspiration,PRC DELEGATED CO-COMMISSIONING,WOODHOUSE HEALTH CENTRE,30537123,"13,912.30"
Department of Health,NHS Sheffield CCG,31/01/2020,C&M-PMS Contract Value,PRC DELEGATED CO-COMMISSIONING,WINCOBANK MEDICAL CENTRE,30537125,"63,053.05"
Department of Health,NHS Sheffield CCG,31/01/2020,C&M-PMS Out of Hours Opt Outs,PRC DELEGATED CO-COMMISSIONING,WINCOBANK MEDICAL CENTRE,30537125,14.95
Department of Health,NHS Sheffield CCG,31/01/2020,C&M-PMS PCN DES Participation,PRC DELEGATED CO-COMMISSIONING,WINCOBANK MEDICAL CENTRE,30537125,"1,179.69"
Department of Health,NHS Sheffield CCG,31/01/2020,C&M-PMS Prem Healthcentre Rent,PRC DELEGATED CO-COMMISSIONING,WINCOBANK MEDICAL CENTRE,30537125,"45,121.79"
Department of Health,NHS Sheffield CCG,31/01/2020,C&M-PMS QOF Aspiration,PRC DELEGATED CO-COMMISSIONING,WINCOBANK MEDICAL CENTRE,30537125,"6,283.36"
Department of Health,NHS Sheffield CCG,31/01/2020,C&M-PMS Contract Value,PRC DELEGATED CO-COMMISSIONING,FOXHILL MEDICAL CENTRE SHEFFIELD,30537127,"51,898.29"
Department of Health,NHS Sheffield CCG,31/01/2020,C&M-PMS PCN DES Participation,PRC DELEGATED CO-COMMISSIONING,FOXHILL MEDICAL CENTRE SHEFFIELD,30537127,977.79
Department of Health,NHS Sheffield CCG,31/01/2020,C&M-PMS PCO Other,PRC DELEGATED CO-COMMISSIONING,FOXHILL MEDICAL CENTRE SHEFFIELD,30537127,400.6
Department of Health,NHS Sheffield CCG,31/01/2020,C&M-PMS Prem Healthcentre Rent,PRC DELEGATED CO-COMMISSIONING,FOXHILL MEDICAL CENTRE SHEFFIELD,30537127,"46,751.17"
Department of Health,NHS Sheffield CCG,31/01/2020,C&M-PMS QOF Aspiration,PRC DELEGATED CO-COMMISSIONING,FOXHILL MEDICAL CENTRE SHEFFIELD,30537127,"5,618.87"
Department of Health,NHS Sheffield CCG,31/01/2020,C&M-PMS Contract Value,PRC DELEGATED CO-COMMISSIONING,FORGE HEALTH GROUP,30537129,"119,479.85"
Department of Health,NHS Sheffield CCG,31/01/2020,C&M-PMS DES Extended Hours Access,PRC DELEGATED CO-COMMISSIONING,FORGE HEALTH GROUP,30537129,"6,869.48"
Department of Health,NHS Sheffield CCG,31/01/2020,C&M-PMS Out of Hours Opt Outs,PRC DELEGATED CO-COMMISSIONING,FORGE HEALTH GROUP,30537129,10.15
Department of Health,NHS Sheffield CCG,31/01/2020,C&M-PMS PCN DES Clinical Director,PRC DELEGATED CO-COMMISSIONING,FORGE HEALTH GROUP,30537129,"3,212.84"
Department of Health,NHS Sheffield CCG,31/01/2020,C&M-PMS PCN DES PCN support,LOCAL ENHANCED SERVICES,FORGE HEALTH GROUP,30537129,"7,032.00"
Department of Health,NHS Sheffield CCG,31/01/2020,C&M-PMS PCN DES Participation,PRC DELEGATED CO-COMMISSIONING,FORGE HEALTH GROUP,30537129,"2,225.15"
Department of Health,NHS Sheffield CCG,31/01/2020,C&M-PMS Prem Healthcentre Rent,PRC DELEGATED CO-COMMISSIONING,FORGE HEALTH GROUP,30537129,"32,899.56"
Department of Health,NHS Sheffield CCG,31/01/2020,C&M-PMS Prem Notional Rent,PRC DELEGATED CO-COMMISSIONING,FORGE HEALTH GROUP,30537129,"9,650.00"
Department of Health,NHS Sheffield CCG,31/01/2020,C&M-PMS Prem Rates,PRC DELEGATED CO-COMMISSIONING,FORGE HEALTH GROUP,30537129,"1,990.00"
Department of Health,NHS Sheffield CCG,31/01/2020,C&M-PMS QOF Aspiration,PRC DELEGATED CO-COMMISSIONING,FORGE HEALTH GROUP,30537129,"11,432.76"
Department of Health,NHS Sheffield CCG,31/01/2020,C&M-APMS Contract Value,PRC DELEGATED CO-COMMISSIONING,CLOVER CITY PRACTICE,30537131,"28,309.02"
Department of Health,NHS Sheffield CCG,31/01/2020,C&M-APMS PCN DES Participation,PRC DELEGATED CO-COMMISSIONING,CLOVER CITY PRACTICE,30537131,529.9
Department of Health,NHS Sheffield CCG,31/01/2020,C&M-PMS QOF Aspiration,PRC DELEGATED CO-COMMISSIONING,CLOVER CITY PRACTICE,30537131,"1,537.57"
Department of Health,NHS Sheffield CCG,31/01/2020,C&M-PMS Contract Value,PRC DELEGATED CO-COMMISSIONING,WOODSEATS MEDICAL CENTRE,30546243,"78,771.55"
Department of Health,NHS Sheffield CCG,31/01/2020,C&M-PMS PCN DES Participation,PRC DELEGATED CO-COMMISSIONING,WOODSEATS MEDICAL CENTRE,30546243,"1,439.13"
Department of Health,NHS Sheffield CCG,31/01/2020,C&M-PMS PCO Other,PRC DELEGATED CO-COMMISSIONING,WOODSEATS MEDICAL CENTRE,30546243,622.7
Department of Health,NHS Sheffield CCG,31/01/2020,C&M-PMS Prem Notional Rent,PRC DELEGATED CO-COMMISSIONING,WOODSEATS MEDICAL CENTRE,30546243,"11,666.67"
Department of Health,NHS Sheffield CCG,31/01/2020,C&M-PMS Prem Rates,PRC DELEGATED CO-COMMISSIONING,WOODSEATS MEDICAL CENTRE,30546243,"3,100.00"
Department of Health,NHS Sheffield CCG,31/01/2020,C&M-PMS QOF Aspiration,PRC DELEGATED CO-COMMISSIONING,WOODSEATS MEDICAL CENTRE,30546243,"8,242.64"
Department of Health,NHS Sheffield CCG,31/01/2020,C&M-PMS Contract Value,PRC DELEGATED CO-COMMISSIONING,MANOR & PARK GROUP PRACTICE,30546245,"72,704.78"
Department of Health,NHS Sheffield CCG,31/01/2020,C&M-PMS Out of Hours Opt Outs,PRC DELEGATED CO-COMMISSIONING,MANOR & PARK GROUP PRACTICE,30546245,84.29
Department of Health,NHS Sheffield CCG,31/01/2020,C&M-PMS PCN DES Participation,PRC DELEGATED CO-COMMISSIONING,MANOR & PARK GROUP PRACTICE,30546245,"1,445.35"
Department of Health,NHS Sheffield CCG,31/01/2020,C&M-PMS Prem Notional Rent,PRC DELEGATED CO-COMMISSIONING,MANOR & PARK GROUP PRACTICE,30546245,"9,050.00"
Department of Health,NHS Sheffield CCG,31/01/2020,C&M-PMS Prem Rates,PRC DELEGATED CO-COMMISSIONING,MANOR & PARK GROUP PRACTICE,30546245,"1,747.00"
Department of Health,NHS Sheffield CCG,31/01/2020,C&M-PMS QOF Aspiration,PRC DELEGATED CO-COMMISSIONING,MANOR & PARK GROUP PRACTICE,30546245,"7,420.75"
Department of Health,NHS Sheffield CCG,31/01/2020,Hcare Srv Rec Fdtn Trust-Contract Baseline,ACUTE COMMISSIONING,CHESTERFIELD ROYAL HOSPITAL NHS FOUNDATION TRUST,30548750,"61,047.00"
Department of Health,NHS Sheffield CCG,31/01/2020,Clinical&Medical-Independent Sector,Mental Health Services - S117 Mental Health,IVY COTTAGE ACKTON LTD,30548782,"52,962.09"
Department of Health,NHS Sheffield CCG,31/01/2020,C&M-APMS Contract Value,PRC DELEGATED CO-COMMISSIONING,CLOVER GROUP PRACTICE,30561440,"128,095.85"
Department of Health,NHS Sheffield CCG,31/01/2020,C&M-APMS PCN DES Participation,PRC DELEGATED CO-COMMISSIONING,CLOVER GROUP PRACTICE,30561440,"2,421.56"
Department of Health,NHS Sheffield CCG,31/01/2020,C&M-APMS Prem Actual Rent,PRC DELEGATED CO-COMMISSIONING,CLOVER GROUP PRACTICE,30561440,"7,973.85"
Department of Health,NHS Sheffield CCG,31/01/2020,C&M-APMS Prem Healthcentre Rent,PRC DELEGATED CO-COMMISSIONING,CLOVER GROUP PRACTICE,30561440,"59,658.86"
Department of Health,NHS Sheffield CCG,31/01/2020,C&M-APMS Prem Notional Rent,PRC DELEGATED CO-COMMISSIONING,CLOVER GROUP PRACTICE,30561440,"2,804.17"
Department of Health,NHS Sheffield CCG,31/01/2020,C&M-PMS QOF Aspiration,PRC DELEGATED CO-COMMISSIONING,CLOVER GROUP PRACTICE,30561440,"11,480.20"
Department of Health,NHS Sheffield CCG,31/01/2020,C&M-PMS Contract Value,PRC DELEGATED CO-COMMISSIONING,SLOAN MEDICAL CENTRE,30561442,"96,026.93"
Department of Health,NHS Sheffield CCG,31/01/2020,C&M-PMS PCN DES Participation,PRC DELEGATED CO-COMMISSIONING,SLOAN MEDICAL CENTRE,30561442,"1,809.97"
Department of Health,NHS Sheffield CCG,31/01/2020,C&M-PMS PCO Other,PRC DELEGATED CO-COMMISSIONING,SLOAN MEDICAL CENTRE,30561442,802.9
Department of Health,NHS Sheffield CCG,31/01/2020,C&M-PMS Prem Actual Rent,PRC DELEGATED CO-COMMISSIONING,SLOAN MEDICAL CENTRE,30561442,"15,970.83"
Department of Health,NHS Sheffield CCG,31/01/2020,C&M-PMS Prem Notional Rent,PRC DELEGATED CO-COMMISSIONING,SLOAN MEDICAL CENTRE,30561442,747.5
Department of Health,NHS Sheffield CCG,31/01/2020,C&M-PMS Prem Rates,PRC DELEGATED CO-COMMISSIONING,SLOAN MEDICAL CENTRE,30561442,"3,423.00"
Department of Health,NHS Sheffield CCG,31/01/2020,C&M-PMS QOF Aspiration,PRC DELEGATED CO-COMMISSIONING,SLOAN MEDICAL CENTRE,30561442,"10,003.70"
Department of Health,NHS Sheffield CCG,31/01/2020,C&M-PMS Contract Value,PRC DELEGATED CO-COMMISSIONING,UPWELL STREET SURGERY,30561443,"37,734.18"
Department of Health,NHS Sheffield CCG,31/01/2020,C&M-PMS Out of Hours Opt Outs,PRC DELEGATED CO-COMMISSIONING,UPWELL STREET SURGERY,30561443,17.15
Department of Health,NHS Sheffield CCG,31/01/2020,C&M-PMS PCN DES Participation,PRC DELEGATED CO-COMMISSIONING,UPWELL STREET SURGERY,30561443,713.41
Department of Health,NHS Sheffield CCG,31/01/2020,C&M-PMS PCO Other,PRC DELEGATED CO-COMMISSIONING,UPWELL STREET SURGERY,30561443,324.8
Department of Health,NHS Sheffield CCG,31/01/2020,C&M-PMS Prem Notional Rent,PRC DELEGATED CO-COMMISSIONING,UPWELL STREET SURGERY,30561443,"8,137.50"
Department of Health,NHS Sheffield CCG,31/01/2020,C&M-PMS Prem Rates,PRC DELEGATED CO-COMMISSIONING,UPWELL STREET SURGERY,30561443,"1,340.00"
Department of Health,NHS Sheffield CCG,31/01/2020,C&M-PMS QOF Aspiration,PRC DELEGATED CO-COMMISSIONING,UPWELL STREET SURGERY,30561443,"4,056.38"
Department of Health,NHS Sheffield CCG,31/01/2020,Cont Care- Adult 100% Fully Funded,CHC ADULT FULLY FUNDED,SOUTH YORKSHIRE HOUSING ASSOCIATION LTD,30570719,"46,763.59"
Department of Health,NHS Sheffield CCG,31/01/2020,Cont Care-Physical Disab (<65),CHC ADULT FULLY FUNDED,VALORUM CARE LTD,30570811,"65,161.59"
Department of Health,NHS Sheffield CCG,31/01/2020,Cont Care-Physical Disab (<65),CHC ADULT FULLY FUNDED,HORIZON CARE HOMES LTD,30570827,"59,757.92"
Department of Health,NHS Sheffield CCG,31/01/2020,Cont Care-Physical Disab (<65),CHC ADULT FULLY FUNDED,SOUTH YORKSHIRE HOUSING ASSOCIATION LTD,30570842,"80,757.85"
Department of Health,NHS Sheffield CCG,31/01/2020,Cont Care-Physical Disab (<65),CHC ADULT FULLY FUNDED,LONGLEY HEALTH CARE LTD,30570847,"87,401.99"
Department of Health,NHS Sheffield CCG,31/01/2020,Cont Care-Physical Disab (<65),CHC ADULT FULLY FUNDED,WILLOWBECK HEALTH CARE LTD,30570850,"177,864.80"
Department of Health,NHS Sheffield CCG,31/01/2020,Cont Care-Physical Disab (<65),CHC ADULT FULLY FUNDED,LOXLEY HEALTH CARE LTD,30570854,"75,177.65"
Department of Health,NHS Sheffield CCG,31/01/2020,Clinical&Medical-Independent Sector,ACUTE COMMISSIONING,CLAREMONT HOSPITAL,30599128,"66,095.00"
Department of Health,NHS Sheffield CCG,31/01/2020,Cont Care- Adult 100% Fully Funded,CHC ADULT FULLY FUNDED,SOUTH YORKSHIRE HOUSING ASSOCIATION LTD,30619962,"25,500.00"
Department of Health,NHS Sheffield CCG,31/01/2020,Cont Care-Physical Disab (<65),CHC ADULT FULLY FUNDED,HC ONE LTD,30623991,"29,095.19"
Department of Health,NHS Sheffield CCG,31/01/2020,Cont Care-Physical Disab (<65),CHC ADULT FULLY FUNDED,HORIZON CARE HOMES LTD,30623994,"34,035.32"
Department of Health,NHS Sheffield CCG,31/01/2020,Cont Care-Physical Disab (<65),CHC ADULT FULLY FUNDED,BONDCARE,30623996,"34,393.04"
Department of Health,NHS Sheffield CCG,31/01/2020,Cont Care-Physical Disab (<65),CHC ADULT FULLY FUNDED,ROSEBERRY CARE CENTRES,30624000,"33,446.10"
Department of Health,NHS Sheffield CCG,31/01/2020,Cont Care-Physical Disab (<65),CHC ADULT FULLY FUNDED,SUSASH GB LTD T/A EAGLE HOUSE,30624004,"27,618.99"
Department of Health,NHS Sheffield CCG,31/01/2020,Voids and Subsidies,RECHARGES NHS PROPERTY SERVICES LTD,NHS PROPERTY SERVICES LTD,30624012,"39,324.00"
Department of Health,NHS Sheffield CCG,31/01/2020,Voids and Subsidies,RECHARGES NHS PROPERTY SERVICES LTD,NHS PROPERTY SERVICES LTD,30624015,"25,268.65"
Department of Health,NHS Sheffield CCG,31/01/2020,Cont Care-Funded Nursing Care Allow,FUNDED NURSING CARE,ROSEBERRY CARE CENTRES,30624036,"27,104.40"
Department of Health,NHS Sheffield CCG,31/01/2020,Cont Care-Funded Nursing Care Allow,FUNDED NURSING CARE,BONDCARE,30624061,"32,425.92"
Department of Health,NHS Sheffield CCG,31/01/2020,Cont Care-Funded Nursing Care Allow,FUNDED NURSING CARE,ROSEBERRY CARE CENTRES,30624065,"26,780.30"
Department of Health,NHS Sheffield CCG,31/01/2020,Cont Care-Physical Disab (<65),CHC ADULT FULLY FUNDED,ALPINE HEALTH CARE,30624091,"26,226.17"
Department of Health,NHS Sheffield CCG,31/01/2020,Cont Care-Physical Disab (<65),CHC ADULT FULLY FUNDED,FOUR SEASONS HEALTH CARE LTD,30624092,"29,552.43"
Department of Health,NHS Sheffield CCG,31/01/2020,Cont Care-Physical Disab (<65),CHC ADULT FULLY FUNDED,FAIRWINDS HEALTH CARE LTD,30624099,"34,685.06"
Department of Health,NHS Sheffield CCG,31/01/2020,Cont Care-Physical Disab (<65),CHC ADULT FULLY FUNDED,SEVEN HILLS NURSING HOME,30624108,"25,706.83"
Department of Health,NHS Sheffield CCG,31/01/2020,Cont Care-Physical Disab (<65),CHC ADULT FULLY FUNDED,ROSEBERRY CARE CENTRES,30624110,"25,954.78"
Department of Health,NHS Sheffield CCG,31/01/2020,Cont Care-Physical Disab (<65),CHC ADULT FULLY FUNDED,HORIZON CARE HOMES LTD,30624111,"31,981.57"
Department of Health,NHS Sheffield CCG,31/01/2020,Cont Care-Physical Disab (<65),CHC ADULT FULLY FUNDED,ROSEBERRY CARE CENTRES,30624113,"43,032.63"
Department of Health,NHS Sheffield CCG,31/01/2020,Hcare Srv Rec Fdtn Trust-Contract Baseline,ACUTE COMMISSIONING,DONCASTER AND BASSETLAW HOSPITALS NHS FOUNDATION TRUST,30624156,"44,305.00"
Department of Health,NHS Sheffield CCG,31/01/2020,C&M-GMS IT Comm Servs -GP Practices,PRIMARY CARE IT,KIER BUSINESS SERVICES LTD,30635378,"100,142.40"
Department of Health,NHS Sheffield CCG,31/01/2020,FM Computer Contracts,BUSINESS INFORMATICS,KIER BUSINESS SERVICES LTD,30635378,"36,193.20"
Department of Health,NHS Sheffield CCG,31/01/2020,Clinical&Medical-Independent Sector,MENTAL HEALTH CONTRACTS,SUSASH GB LTD T/A EAGLE HOUSE,30635397,"30,092.00"
Department of Health,NHS Sheffield CCG,31/01/2020,Clinical&Medical-Independent Sector,MENTAL HEALTH CONTRACTS,SOUTH YORKSHIRE HOUSING ASSOCIATION LTD,30635405,"34,435.00"
Department of Health,NHS Sheffield CCG,31/01/2020,Clinical&Medical-Othe Public Sector,COMMUNITY SERVICES,SHEFFIELD CITY COUNCIL,30635408,"150,416.67"
Department of Health,NHS Sheffield CCG,31/01/2020,Clinical&Medical-Othe Public Sector,MENTAL HEALTH SERVICES - COLLABORATIVE COMMISSIONING,SHEFFIELD CITY COUNCIL,30635408,"83,669.08"
Department of Health,NHS Sheffield CCG,31/01/2020,Clinical&Medical-Othe Public Sector,REABLEMENT,SHEFFIELD CITY COUNCIL,30635408,"21,830.67"
Department of Health,NHS Sheffield CCG,31/01/2020,Clinical&Medical-Othe Public Sector,SAFEGUARDING,SHEFFIELD CITY COUNCIL,30635408,"12,234.75"
Department of Health,NHS Sheffield CCG,31/01/2020,Cont Care-Physical Disab (65+),CHC ADULT FULLY FUNDED,SHEFFIELD CITY COUNCIL,30635408,"56,571.74"
Department of Health,NHS Sheffield CCG,31/01/2020,Soc Care-Joint H&C Teams/Working,INTERMEDIATE CARE,SHEFFIELD CITY COUNCIL,30635408,"151,447.58"
Department of Health,NHS Sheffield CCG,31/01/2020,Soc Care-Other Soc Care,COMMISSIONING - NON ACUTE,SHEFFIELD CITY COUNCIL,30635408,"1,467,750.00"
Department of Health,NHS Sheffield CCG,31/01/2020,Soc Care-Support Prim Care,COMMUNITY SERVICES,SHEFFIELD CITY COUNCIL,30635408,"59,500.00"
Department of Health,NHS Sheffield CCG,31/01/2020,Clinical&Medical-Voluntary Sector,MENTAL HEALTH SERVICES - OTHER,SHEFFIELD MIND,30635435,"25,000.00"
Department of Health,NHS Sheffield CCG,31/01/2020,Hcare Srv Rec Fdtn Trust-Contract Baseline,ACUTE COMMISSIONING,CHESTERFIELD ROYAL HOSPITAL NHS FOUNDATION TRUST,30635436,"57,411.00"
Department of Health,NHS Sheffield CCG,31/01/2020,Hcare Srv Rec Fdtn Trust-Contract Baseline,ACUTE CHILDRENS SERVICES,SHEFFIELD CHILDRENS NHS FOUNDATION TRUST,30647452,"3,387,974.00"
Department of Health,NHS Sheffield CCG,31/01/2020,Hcare Srv Rec Fdtn Trust-Contract Baseline,MENTAL HEALTH CONTRACTS,ROTHERHAM DONCASTER AND SOUTH HUMBER NHS FOUNDATION TRUST,30709759,"25,487.95"
Department of Health,NHS Sheffield CCG,31/01/2020,Oth Travel Costs-Car Mileage,BEREAVEMENT SERVICE,SHEFFIELD HEALTH & SOCIAL CARE NHS FOUNDATION TRUST,30709776,119.39
Department of Health,NHS Sheffield CCG,31/01/2020,C&M-GMS LES Equitable Funding,LOCAL ENHANCED SERVICES,PORTER BROOK MEDICAL CENTRE,30722439,"26,776.00"
Department of Health,NHS Sheffield CCG,31/01/2020,C&M-GMS LES Equitable Funding,LOCAL ENHANCED SERVICES,UNIVERSITY HEALTH SERVICE,30722589,"29,132.00"
Department of Health,NHS Sheffield CCG,31/01/2020,C&M-APMS LES Translation Fees,LOCAL ENHANCED SERVICES,CLOVER GROUP PRACTICE,30722698,"65,500.00"
Department of Health,NHS Sheffield CCG,31/01/2020,Miscellaneous Expenditure (L9),FINANCE,NHS NORTH OF ENGLAND CSU,30728225,"30,000.00"
Department of Health,NHS Sheffield CCG,31/01/2020,C&M-GMS LES Translation Fees,INTERPRETING SERVICES,LANGUAGELINE SOLUTIONS,30728422,"26,316.00"
Department of Health,NHS Sheffield CCG,31/01/2020,C&M-GMS LES Translation Fees,INTERPRETING SERVICES,LANGUAGELINE SOLUTIONS,30728433,"42,707.94"
Department of Health,NHS Sheffield CCG,31/01/2020,C&M-GMS IT Comm Servs -GP Practices,PRIMARY CARE IT,BT GLOBAL SERVICES,30728492,"25,083.50"
Department of Health,NHS Sheffield CCG,31/01/2020,Miscellaneous Expenditure (L9),FINANCE,NHS NORTH OF ENGLAND CSU,30728559,"-30,000.00"
Department of Health,NHS Sheffield CCG,31/01/2020,Clinical&Medical-Independent Sector,ACUTE COMMISSIONING,SPAMEDICA LTD,30728622,"104,707.35"
Department of Health,NHS Sheffield CCG,31/01/2020,Clinical&Medical-Independent Sector,Mental Health Services - S117 Mental Health,MOORVILLE RESIDENTIAL,30783861,"15,062.28"
Department of Health,NHS Sheffield CCG,31/01/2020,Cont Care-Learning Disab(<65),CHC ADULT FULLY FUNDED,MOORVILLE RESIDENTIAL,30783861,"9,149.03"
Department of Health,NHS Sheffield CCG,31/01/2020,Cont Care-Learning Disab(<65),CHC ADULT JOINT FUNDED,MOORVILLE RESIDENTIAL,30783861,"4,024.73"
Department of Health,NHS Sheffield CCG,31/01/2020,Cont Care-Mental Health (<65),CHC ADULT JOINT FUNDED,MOORVILLE RESIDENTIAL,30783861,491.66
Department of Health,NHS Sheffield CCG,31/01/2020,C&M-GMS Global Sum,PRC DELEGATED CO-COMMISSIONING,BASLOW ROAD & SHOREHAM STREET SURGERIES,30805262,"96,589.28"
Department of Health,NHS Sheffield CCG,31/01/2020,C&M-GMS MPIG Correction Factor,PRC DELEGATED CO-COMMISSIONING,BASLOW ROAD & SHOREHAM STREET SURGERIES,30805262,146.21
Department of Health,NHS Sheffield CCG,31/01/2020,C&M-GMS PCN DES Participation,PRC DELEGATED CO-COMMISSIONING,BASLOW ROAD & SHOREHAM STREET SURGERIES,30805262,"2,012.54"
Department of Health,NHS Sheffield CCG,31/01/2020,C&M-GMS Prem Notional Rent,PRC DELEGATED CO-COMMISSIONING,BASLOW ROAD & SHOREHAM STREET SURGERIES,30805262,"8,222.71"
Department of Health,NHS Sheffield CCG,31/01/2020,C&M-GMS Prem Rates,PRC DELEGATED CO-COMMISSIONING,BASLOW ROAD & SHOREHAM STREET SURGERIES,30805262,"2,421.00"
Department of Health,NHS Sheffield CCG,31/01/2020,C&M-GMS Prem Water Rates,PRC DELEGATED CO-COMMISSIONING,BASLOW ROAD & SHOREHAM STREET SURGERIES,30805262,384.03
Department of Health,NHS Sheffield CCG,31/01/2020,C&M-GMS QOF Aspiration,PRC DELEGATED CO-COMMISSIONING,BASLOW ROAD & SHOREHAM STREET SURGERIES,30805262,"10,278.96"
Department of Health,NHS Sheffield CCG,31/01/2020,C&M-GMS Cost of Drugs -Prescribing,LOCAL ENHANCED SERVICES,BUCHANAN ROAD SURGERY,30805265,62.86
Department of Health,NHS Sheffield CCG,31/01/2020,C&M-GMS Global Sum,PRC DELEGATED CO-COMMISSIONING,BUCHANAN ROAD SURGERY,30805265,"35,728.03"
Department of Health,NHS Sheffield CCG,31/01/2020,C&M-GMS MPIG Correction Factor,PRC DELEGATED CO-COMMISSIONING,BUCHANAN ROAD SURGERY,30805265,655.25
Department of Health,NHS Sheffield CCG,31/01/2020,C&M-GMS PCN DES Participation,PRC DELEGATED CO-COMMISSIONING,BUCHANAN ROAD SURGERY,30805265,736.41
Department of Health,NHS Sheffield CCG,31/01/2020,C&M-GMS Prem Notional Rent,PRC DELEGATED CO-COMMISSIONING,BUCHANAN ROAD SURGERY,30805265,"2,595.83"
Department of Health,NHS Sheffield CCG,31/01/2020,C&M-GMS Prem Rates,PRC DELEGATED CO-COMMISSIONING,BUCHANAN ROAD SURGERY,30805265,884
Department of Health,NHS Sheffield CCG,31/01/2020,C&M-GMS Prof Fees Prescribing,PRC DELEGATED CO-COMMISSIONING,BUCHANAN ROAD SURGERY,30805265,18.62
Department of Health,NHS Sheffield CCG,31/01/2020,C&M-GMS QOF Aspiration,PRC DELEGATED CO-COMMISSIONING,BUCHANAN ROAD SURGERY,30805265,"4,303.24"
Department of Health,NHS Sheffield CCG,31/01/2020,C&M-GMS Cost of Drugs -Prescribing,LOCAL ENHANCED SERVICES,BROOMHILL SURGERY,30805269,"6,648.59"
Department of Health,NHS Sheffield CCG,31/01/2020,C&M-GMS Global Sum,PRC DELEGATED CO-COMMISSIONING,BROOMHILL SURGERY,30805269,"64,851.54"
Department of Health,NHS Sheffield CCG,31/01/2020,C&M-GMS MPIG Correction Factor,PRC DELEGATED CO-COMMISSIONING,BROOMHILL SURGERY,30805269,251
Department of Health,NHS Sheffield CCG,31/01/2020,C&M-GMS PCN DES Participation,PRC DELEGATED CO-COMMISSIONING,BROOMHILL SURGERY,30805269,"1,318.50"
Department of Health,NHS Sheffield CCG,31/01/2020,C&M-GMS Prem Cost Rent,PRC DELEGATED CO-COMMISSIONING,BROOMHILL SURGERY,30805269,"5,924.19"
Department of Health,NHS Sheffield CCG,31/01/2020,C&M-GMS Prem Notional Rent,PRC DELEGATED CO-COMMISSIONING,BROOMHILL SURGERY,30805269,"2,612.50"
Department of Health,NHS Sheffield CCG,31/01/2020,C&M-GMS Prem Rates,PRC DELEGATED CO-COMMISSIONING,BROOMHILL SURGERY,30805269,"1,891.00"
Department of Health,NHS Sheffield CCG,31/01/2020,C&M-GMS Prof Fees Prescribing,PRC DELEGATED CO-COMMISSIONING,BROOMHILL SURGERY,30805269,"1,042.79"
Department of Health,NHS Sheffield CCG,31/01/2020,C&M-GMS QOF Aspiration,PRC DELEGATED CO-COMMISSIONING,BROOMHILL SURGERY,30805269,"6,211.39"
Department of Health,NHS Sheffield CCG,31/01/2020,C&M-GMS Cost of Drugs -Prescribing,LOCAL ENHANCED SERVICES,CHARNOCK HEALTH PRIMARY CARE CENTRE,30805271,"4,090.13"
Department of Health,NHS Sheffield CCG,31/01/2020,C&M-GMS Global Sum,PRC DELEGATED CO-COMMISSIONING,CHARNOCK HEALTH PRIMARY CARE CENTRE,30805271,"43,474.71"
Department of Health,NHS Sheffield CCG,31/01/2020,C&M-GMS MPIG Correction Factor,PRC DELEGATED CO-COMMISSIONING,CHARNOCK HEALTH PRIMARY CARE CENTRE,30805271,206.62
Department of Health,NHS Sheffield CCG,31/01/2020,C&M-GMS PCN DES Participation,PRC DELEGATED CO-COMMISSIONING,CHARNOCK HEALTH PRIMARY CARE CENTRE,30805271,869.33
Department of Health,NHS Sheffield CCG,31/01/2020,C&M-GMS PCO Other,PRC DELEGATED CO-COMMISSIONING,CHARNOCK HEALTH PRIMARY CARE CENTRE,30805271,363.8
Department of Health,NHS Sheffield CCG,31/01/2020,C&M-GMS Prem Actual Rent,PRC DELEGATED CO-COMMISSIONING,CHARNOCK HEALTH PRIMARY CARE CENTRE,30805271,"20,100.00"
Department of Health,NHS Sheffield CCG,31/01/2020,C&M-GMS Prem Notional Rent,PRC DELEGATED CO-COMMISSIONING,CHARNOCK HEALTH PRIMARY CARE CENTRE,30805271,335
Department of Health,NHS Sheffield CCG,31/01/2020,C&M-GMS Prem Rates,PRC DELEGATED CO-COMMISSIONING,CHARNOCK HEALTH PRIMARY CARE CENTRE,30805271,"1,547.00"
Department of Health,NHS Sheffield CCG,31/01/2020,C&M-GMS Prem Water Rates,PRC DELEGATED CO-COMMISSIONING,CHARNOCK HEALTH PRIMARY CARE CENTRE,30805271,129.12
Department of Health,NHS Sheffield CCG,31/01/2020,C&M-GMS Prof Fees Prescribing,PRC DELEGATED CO-COMMISSIONING,CHARNOCK HEALTH PRIMARY CARE CENTRE,30805271,728.29
Department of Health,NHS Sheffield CCG,31/01/2020,C&M-GMS QOF Aspiration,PRC DELEGATED CO-COMMISSIONING,CHARNOCK HEALTH PRIMARY CARE CENTRE,30805271,"4,932.79"
Department of Health,NHS Sheffield CCG,31/01/2020,C&M-GMS GP Statutory Levy,PRC DELEGATED CO-COMMISSIONING,CARTERKNOWLE & DORE MEDICAL PRACTICE,30805273,-438.2
Department of Health,NHS Sheffield CCG,31/01/2020,C&M-GMS Prem Rates,PRC DELEGATED CO-COMMISSIONING,CARTERKNOWLE & DORE MEDICAL PRACTICE,30805273,"-9,635.80"
Department of Health,NHS Sheffield CCG,31/01/2020,C&M-GMS Cost of Drugs -Prescribing,LOCAL ENHANCED SERVICES,CARTERKNOWLE & DORE MEDICAL PRACTICE,30805274,"5,676.91"
Department of Health,NHS Sheffield CCG,31/01/2020,C&M-GMS Global Sum,PRC DELEGATED CO-COMMISSIONING,CARTERKNOWLE & DORE MEDICAL PRACTICE,30805274,"85,153.70"
Department of Health,NHS Sheffield CCG,31/01/2020,C&M-GMS MPIG Correction Factor,PRC DELEGATED CO-COMMISSIONING,CARTERKNOWLE & DORE MEDICAL PRACTICE,30805274,747.29
Department of Health,NHS Sheffield CCG,31/01/2020,C&M-GMS PCN DES Participation,PRC DELEGATED CO-COMMISSIONING,CARTERKNOWLE & DORE MEDICAL PRACTICE,30805274,"1,742.96"
Department of Health,NHS Sheffield CCG,31/01/2020,C&M-GMS PCO Other,PRC DELEGATED CO-COMMISSIONING,CARTERKNOWLE & DORE MEDICAL PRACTICE,30805274,"7,630.00"
Department of Health,NHS Sheffield CCG,31/01/2020,C&M-GMS Prem Notional Rent,PRC DELEGATED CO-COMMISSIONING,CARTERKNOWLE & DORE MEDICAL PRACTICE,30805274,"7,596.50"
Department of Health,NHS Sheffield CCG,31/01/2020,C&M-GMS Prem Rates,PRC DELEGATED CO-COMMISSIONING,CARTERKNOWLE & DORE MEDICAL PRACTICE,30805274,"17,368.00"
Department of Health,NHS Sheffield CCG,31/01/2020,C&M-GMS Prof Fees Prescribing,PRC DELEGATED CO-COMMISSIONING,CARTERKNOWLE & DORE MEDICAL PRACTICE,30805274,819.32
Department of Health,NHS Sheffield CCG,31/01/2020,C&M-GMS QOF Aspiration,PRC DELEGATED CO-COMMISSIONING,CARTERKNOWLE & DORE MEDICAL PRACTICE,30805274,"10,055.02"
Department of Health,NHS Sheffield CCG,31/01/2020,C&M-GMS Cost of Drugs -Prescribing,LOCAL ENHANCED SERVICES,CROOKES PRACTICE,30805279,"4,292.11"
Department of Health,NHS Sheffield CCG,31/01/2020,C&M-GMS Global Sum,PRC DELEGATED CO-COMMISSIONING,CROOKES PRACTICE,30805279,"52,152.17"
Department of Health,NHS Sheffield CCG,31/01/2020,C&M-GMS MPIG Correction Factor,PRC DELEGATED CO-COMMISSIONING,CROOKES PRACTICE,30805279,772.96
Department of Health,NHS Sheffield CCG,31/01/2020,C&M-GMS PCN DES Participation,PRC DELEGATED CO-COMMISSIONING,CROOKES PRACTICE,30805279,"1,040.55"
Department of Health,NHS Sheffield CCG,31/01/2020,C&M-GMS PCO Other,PRC DELEGATED CO-COMMISSIONING,CROOKES PRACTICE,30805279,512.6
Department of Health,NHS Sheffield CCG,31/01/2020,C&M-GMS Prem Notional Rent,PRC DELEGATED CO-COMMISSIONING,CROOKES PRACTICE,30805279,"3,874.67"
Department of Health,NHS Sheffield CCG,31/01/2020,C&M-GMS Prem Rates,PRC DELEGATED CO-COMMISSIONING,CROOKES PRACTICE,30805279,"1,510.00"
Department of Health,NHS Sheffield CCG,31/01/2020,C&M-GMS Prof Fees Prescribing,PRC DELEGATED CO-COMMISSIONING,CROOKES PRACTICE,30805279,862.77
Department of Health,NHS Sheffield CCG,31/01/2020,C&M-GMS QOF Aspiration,PRC DELEGATED CO-COMMISSIONING,CROOKES PRACTICE,30805279,"4,885.77"
Department of Health,NHS Sheffield CCG,31/01/2020,C&M-GMS Cost of Drugs -Prescribing,LOCAL ENHANCED SERVICES,DEVONSHIRE GREEN MEDICAL CENTRE,30805282,"3,562.24"
Department of Health,NHS Sheffield CCG,31/01/2020,C&M-GMS DES Extended Hours Access,PRC DELEGATED CO-COMMISSIONING,DEVONSHIRE GREEN MEDICAL CENTRE,30805282,"6,816.36"
Department of Health,NHS Sheffield CCG,31/01/2020,C&M-GMS Global Sum,PRC DELEGATED CO-COMMISSIONING,DEVONSHIRE GREEN MEDICAL CENTRE,30805282,"46,421.81"
Department of Health,NHS Sheffield CCG,31/01/2020,C&M-GMS MPIG Correction Factor,PRC DELEGATED CO-COMMISSIONING,DEVONSHIRE GREEN MEDICAL CENTRE,30805282,"1,615.60"
Department of Health,NHS Sheffield CCG,31/01/2020,C&M-GMS PCN DES Clinical Director,PRC DELEGATED CO-COMMISSIONING,DEVONSHIRE GREEN MEDICAL CENTRE,30805282,"3,188.00"
Department of Health,NHS Sheffield CCG,31/01/2020,C&M-GMS PCN DES PCN support,LOCAL ENHANCED SERVICES,DEVONSHIRE GREEN MEDICAL CENTRE,30805282,"6,977.63"
Department of Health,NHS Sheffield CCG,31/01/2020,C&M-GMS PCN DES Participation,PRC DELEGATED CO-COMMISSIONING,DEVONSHIRE GREEN MEDICAL CENTRE,30805282,931.75
Department of Health,NHS Sheffield CCG,31/01/2020,C&M-GMS Prem Notional Rent,PRC DELEGATED CO-COMMISSIONING,DEVONSHIRE GREEN MEDICAL CENTRE,30805282,"5,987.50"
Department of Health,NHS Sheffield CCG,31/01/2020,C&M-GMS Prem Rates,PRC DELEGATED CO-COMMISSIONING,DEVONSHIRE GREEN MEDICAL CENTRE,30805282,975
Department of Health,NHS Sheffield CCG,31/01/2020,C&M-GMS Prof Fees Prescribing,PRC DELEGATED CO-COMMISSIONING,DEVONSHIRE GREEN MEDICAL CENTRE,30805282,728.29
Department of Health,NHS Sheffield CCG,31/01/2020,C&M-GMS QOF Aspiration,PRC DELEGATED CO-COMMISSIONING,DEVONSHIRE GREEN MEDICAL CENTRE,30805282,"4,805.68"
Department of Health,NHS Sheffield CCG,31/01/2020,C&M-GMS Cost of Drugs -Prescribing,LOCAL ENHANCED SERVICES,ECCLESFIELD GROUP PRACTICE,30805286,"7,520.97"
Department of Health,NHS Sheffield CCG,31/01/2020,C&M-GMS DES Extended Hours Access,PRC DELEGATED CO-COMMISSIONING,ECCLESFIELD GROUP PRACTICE,30805286,"5,190.33"
Department of Health,NHS Sheffield CCG,31/01/2020,C&M-GMS Global Sum,PRC DELEGATED CO-COMMISSIONING,ECCLESFIELD GROUP PRACTICE,30805286,"69,974.40"
Department of Health,NHS Sheffield CCG,31/01/2020,C&M-GMS PCN DES Clinical Director,PRC DELEGATED CO-COMMISSIONING,ECCLESFIELD GROUP PRACTICE,30805286,"2,427.51"
Department of Health,NHS Sheffield CCG,31/01/2020,C&M-GMS PCN DES PCN support,LOCAL ENHANCED SERVICES,ECCLESFIELD GROUP PRACTICE,30805286,"5,313.13"
Department of Health,NHS Sheffield CCG,31/01/2020,C&M-GMS PCN DES Participation,PRC DELEGATED CO-COMMISSIONING,ECCLESFIELD GROUP PRACTICE,30805286,"1,400.97"
Department of Health,NHS Sheffield CCG,31/01/2020,C&M-GMS PCO Other,PRC DELEGATED CO-COMMISSIONING,ECCLESFIELD GROUP PRACTICE,30805286,525.3
Department of Health,NHS Sheffield CCG,31/01/2020,C&M-GMS Prem Notional Rent,PRC DELEGATED CO-COMMISSIONING,ECCLESFIELD GROUP PRACTICE,30805286,"6,805.42"
Department of Health,NHS Sheffield CCG,31/01/2020,C&M-GMS Prem Rates,PRC DELEGATED CO-COMMISSIONING,ECCLESFIELD GROUP PRACTICE,30805286,"1,527.00"
Department of Health,NHS Sheffield CCG,31/01/2020,C&M-GMS Prof Fees Prescribing,PRC DELEGATED CO-COMMISSIONING,ECCLESFIELD GROUP PRACTICE,30805286,"1,361.41"
Department of Health,NHS Sheffield CCG,31/01/2020,C&M-GMS QOF Aspiration,PRC DELEGATED CO-COMMISSIONING,ECCLESFIELD GROUP PRACTICE,30805286,"9,179.49"
Department of Health,NHS Sheffield CCG,31/01/2020,C&M-GMS Cost of Drugs -Prescribing,LOCAL ENHANCED SERVICES,DUKE MEDICAL CENTRE,30805289,"3,429.50"
Department of Health,NHS Sheffield CCG,31/01/2020,C&M-GMS Global Sum,PRC DELEGATED CO-COMMISSIONING,DUKE MEDICAL CENTRE,30805289,"59,077.01"
Department of Health,NHS Sheffield CCG,31/01/2020,C&M-GMS MPIG Correction Factor,PRC DELEGATED CO-COMMISSIONING,DUKE MEDICAL CENTRE,30805289,306.25
Department of Health,NHS Sheffield CCG,31/01/2020,C&M-GMS PCN DES Participation,PRC DELEGATED CO-COMMISSIONING,DUKE MEDICAL CENTRE,30805289,"1,138.79"
Department of Health,NHS Sheffield CCG,31/01/2020,C&M-GMS PCO Other,PRC DELEGATED CO-COMMISSIONING,DUKE MEDICAL CENTRE,30805289,458.3
Department of Health,NHS Sheffield CCG,31/01/2020,C&M-GMS Prem Notional Rent,PRC DELEGATED CO-COMMISSIONING,DUKE MEDICAL CENTRE,30805289,"5,721.67"
Department of Health,NHS Sheffield CCG,31/01/2020,C&M-GMS Prem Rates,PRC DELEGATED CO-COMMISSIONING,DUKE MEDICAL CENTRE,30805289,"1,311.00"
Department of Health,NHS Sheffield CCG,31/01/2020,C&M-GMS Prem Water Rates,PRC DELEGATED CO-COMMISSIONING,DUKE MEDICAL CENTRE,30805289,328.14
Department of Health,NHS Sheffield CCG,31/01/2020,C&M-GMS Prof Fees Prescribing,PRC DELEGATED CO-COMMISSIONING,DUKE MEDICAL CENTRE,30805289,556.57
Department of Health,NHS Sheffield CCG,31/01/2020,C&M-GMS QOF Aspiration,PRC DELEGATED CO-COMMISSIONING,DUKE MEDICAL CENTRE,30805289,"5,166.69"
Department of Health,NHS Sheffield CCG,31/01/2020,C&M-GMS Cost of Drugs -Prescribing,LOCAL ENHANCED SERVICES,FAR LANE MEDICAL CENTRE,30805296,"2,745.91"
Department of Health,NHS Sheffield CCG,31/01/2020,C&M-GMS Global Sum,PRC DELEGATED CO-COMMISSIONING,FAR LANE MEDICAL CENTRE,30805296,"55,386.09"
Department of Health,NHS Sheffield CCG,31/01/2020,C&M-GMS PCN DES Participation,PRC DELEGATED CO-COMMISSIONING,FAR LANE MEDICAL CENTRE,30805296,"1,138.48"
Department of Health,NHS Sheffield CCG,31/01/2020,C&M-GMS PCO Other,PRC DELEGATED CO-COMMISSIONING,FAR LANE MEDICAL CENTRE,30805296,462.3
Department of Health,NHS Sheffield CCG,31/01/2020,C&M-GMS Prem Notional Rent,PRC DELEGATED CO-COMMISSIONING,FAR LANE MEDICAL CENTRE,30805296,"3,462.50"
Department of Health,NHS Sheffield CCG,31/01/2020,C&M-GMS Prem Rates,PRC DELEGATED CO-COMMISSIONING,FAR LANE MEDICAL CENTRE,30805296,"1,184.00"
Department of Health,NHS Sheffield CCG,31/01/2020,C&M-GMS Prem Water Rates,PRC DELEGATED CO-COMMISSIONING,FAR LANE MEDICAL CENTRE,30805296,94.75
Department of Health,NHS Sheffield CCG,31/01/2020,C&M-GMS Prof Fees Prescribing,PRC DELEGATED CO-COMMISSIONING,FAR LANE MEDICAL CENTRE,30805296,591.74
Department of Health,NHS Sheffield CCG,31/01/2020,C&M-GMS QOF Aspiration,PRC DELEGATED CO-COMMISSIONING,FAR LANE MEDICAL CENTRE,30805296,"5,719.80"
Department of Health,NHS Sheffield CCG,31/01/2020,C&M-GMS Cost of Drugs -Prescribing,LOCAL ENHANCED SERVICES,HANDSWORTH MEDICAL PRACTICE SHEFFIELD,30805302,"4,342.88"
Department of Health,NHS Sheffield CCG,31/01/2020,C&M-GMS Global Sum,PRC DELEGATED CO-COMMISSIONING,HANDSWORTH MEDICAL PRACTICE SHEFFIELD,30805302,"77,844.19"
Department of Health,NHS Sheffield CCG,31/01/2020,C&M-GMS PCN DES Participation,PRC DELEGATED CO-COMMISSIONING,HANDSWORTH MEDICAL PRACTICE SHEFFIELD,30805302,"1,567.06"
Department of Health,NHS Sheffield CCG,31/01/2020,C&M-GMS Prem Notional Rent,PRC DELEGATED CO-COMMISSIONING,HANDSWORTH MEDICAL PRACTICE SHEFFIELD,30805302,"3,321.66"
Department of Health,NHS Sheffield CCG,31/01/2020,C&M-GMS Prem Water Rates,PRC DELEGATED CO-COMMISSIONING,HANDSWORTH MEDICAL PRACTICE SHEFFIELD,30805302,178.58
Department of Health,NHS Sheffield CCG,31/01/2020,C&M-GMS Prof Fees Prescribing,PRC DELEGATED CO-COMMISSIONING,HANDSWORTH MEDICAL PRACTICE SHEFFIELD,30805302,937.26
Department of Health,NHS Sheffield CCG,31/01/2020,C&M-GMS QOF Aspiration,PRC DELEGATED CO-COMMISSIONING,HANDSWORTH MEDICAL PRACTICE SHEFFIELD,30805302,"7,811.29"
Department of Health,NHS Sheffield CCG,31/01/2020,C&M-GMS Cost of Drugs -Prescribing,LOCAL ENHANCED SERVICES,GRENOSIDE SURGERY,30805304,"9,829.68"
Department of Health,NHS Sheffield CCG,31/01/2020,C&M-GMS Global Sum,PRC DELEGATED CO-COMMISSIONING,GRENOSIDE SURGERY,30805304,"59,340.93"
Department of Health,NHS Sheffield CCG,31/01/2020,C&M-GMS PCN DES Participation,PRC DELEGATED CO-COMMISSIONING,GRENOSIDE SURGERY,30805304,"1,190.25"
Department of Health,NHS Sheffield CCG,31/01/2020,C&M-GMS PCO Other,PRC DELEGATED CO-COMMISSIONING,GRENOSIDE SURGERY,30805304,475.5
Department of Health,NHS Sheffield CCG,31/01/2020,C&M-GMS Prem Notional Rent,PRC DELEGATED CO-COMMISSIONING,GRENOSIDE SURGERY,30805304,"8,110.42"
Department of Health,NHS Sheffield CCG,31/01/2020,C&M-GMS Prof Fees Prescribing,PRC DELEGATED CO-COMMISSIONING,GRENOSIDE SURGERY,30805304,"1,880.32"
Department of Health,NHS Sheffield CCG,31/01/2020,C&M-GMS QOF Aspiration,PRC DELEGATED CO-COMMISSIONING,GRENOSIDE SURGERY,30805304,"5,686.85"
Department of Health,NHS Sheffield CCG,31/01/2020,C&M-GMS Cost of Drugs -Prescribing,LOCAL ENHANCED SERVICES,GREYSTONES MEDICAL CENTRE,30805306,"1,655.98"
Department of Health,NHS Sheffield CCG,31/01/2020,C&M-GMS Global Sum,PRC DELEGATED CO-COMMISSIONING,GREYSTONES MEDICAL CENTRE,30805306,"19,868.44"
Department of Health,NHS Sheffield CCG,31/01/2020,C&M-GMS MPIG Correction Factor,PRC DELEGATED CO-COMMISSIONING,GREYSTONES MEDICAL CENTRE,30805306,552.23
Department of Health,NHS Sheffield CCG,31/01/2020,C&M-GMS PCN DES Participation,PRC DELEGATED CO-COMMISSIONING,GREYSTONES MEDICAL CENTRE,30805306,405.94
Department of Health,NHS Sheffield CCG,31/01/2020,C&M-GMS PCO Other,PRC DELEGATED CO-COMMISSIONING,GREYSTONES MEDICAL CENTRE,30805306,263.1
Department of Health,NHS Sheffield CCG,31/01/2020,C&M-GMS Prem Notional Rent,PRC DELEGATED CO-COMMISSIONING,GREYSTONES MEDICAL CENTRE,30805306,"2,885.42"
Department of Health,NHS Sheffield CCG,31/01/2020,C&M-GMS Prem Rates,PRC DELEGATED CO-COMMISSIONING,GREYSTONES MEDICAL CENTRE,30805306,606
Department of Health,NHS Sheffield CCG,31/01/2020,C&M-GMS Prem Water Rates,PRC DELEGATED CO-COMMISSIONING,GREYSTONES MEDICAL CENTRE,30805306,113.66
Department of Health,NHS Sheffield CCG,31/01/2020,C&M-GMS Prof Fees Prescribing,PRC DELEGATED CO-COMMISSIONING,GREYSTONES MEDICAL CENTRE,30805306,271.04
Department of Health,NHS Sheffield CCG,31/01/2020,C&M-GMS QOF Aspiration,PRC DELEGATED CO-COMMISSIONING,GREYSTONES MEDICAL CENTRE,30805306,"2,314.72"
Department of Health,NHS Sheffield CCG,31/01/2020,C&M-GMS Cost of Drugs -Prescribing,LOCAL ENHANCED SERVICES,HEELEY GREEN SURGERY,30805308,"3,146.98"
Department of Health,NHS Sheffield CCG,31/01/2020,C&M-GMS Global Sum,PRC DELEGATED CO-COMMISSIONING,HEELEY GREEN SURGERY,30805308,"41,717.36"
Department of Health,NHS Sheffield CCG,31/01/2020,C&M-GMS MPIG Correction Factor,PRC DELEGATED CO-COMMISSIONING,HEELEY GREEN SURGERY,30805308,188.1
Department of Health,NHS Sheffield CCG,31/01/2020,C&M-GMS PCN DES Participation,PRC DELEGATED CO-COMMISSIONING,HEELEY GREEN SURGERY,30805308,875
Department of Health,NHS Sheffield CCG,31/01/2020,C&M-GMS Prem Notional Rent,PRC DELEGATED CO-COMMISSIONING,HEELEY GREEN SURGERY,30805308,"3,254.17"
Department of Health,NHS Sheffield CCG,31/01/2020,C&M-GMS Prem Rates,PRC DELEGATED CO-COMMISSIONING,HEELEY GREEN SURGERY,30805308,305
Department of Health,NHS Sheffield CCG,31/01/2020,C&M-GMS Prof Fees Prescribing,PRC DELEGATED CO-COMMISSIONING,HEELEY GREEN SURGERY,30805308,602.08
Department of Health,NHS Sheffield CCG,31/01/2020,C&M-GMS QOF Aspiration,PRC DELEGATED CO-COMMISSIONING,HEELEY GREEN SURGERY,30805308,"4,709.02"
Department of Health,NHS Sheffield CCG,31/01/2020,C&M-GMS Cost of Drugs -Prescribing,LOCAL ENHANCED SERVICES,HOLLIES MEDICAL CENTRE,30805310,"6,847.64"
Department of Health,NHS Sheffield CCG,31/01/2020,C&M-GMS DES Learn Dsblty Hlth Chk,PRC DELEGATED CO-COMMISSIONING,HOLLIES MEDICAL CENTRE,30805310,840
Department of Health,NHS Sheffield CCG,31/01/2020,C&M-GMS Global Sum,PRC DELEGATED CO-COMMISSIONING,HOLLIES MEDICAL CENTRE,30805310,"61,231.91"
Department of Health,NHS Sheffield CCG,31/01/2020,C&M-GMS MPIG Correction Factor,PRC DELEGATED CO-COMMISSIONING,HOLLIES MEDICAL CENTRE,30805310,726.36
Department of Health,NHS Sheffield CCG,31/01/2020,C&M-GMS PCN DES Participation,PRC DELEGATED CO-COMMISSIONING,HOLLIES MEDICAL CENTRE,30805310,"1,215.60"
Department of Health,NHS Sheffield CCG,31/01/2020,C&M-GMS Prem Notional Rent,PRC DELEGATED CO-COMMISSIONING,HOLLIES MEDICAL CENTRE,30805310,"3,229.17"
Department of Health,NHS Sheffield CCG,31/01/2020,C&M-GMS Prof Fees Prescribing,PRC DELEGATED CO-COMMISSIONING,HOLLIES MEDICAL CENTRE,30805310,"1,190.88"
Department of Health,NHS Sheffield CCG,31/01/2020,C&M-GMS QOF Aspiration,PRC DELEGATED CO-COMMISSIONING,HOLLIES MEDICAL CENTRE,30805310,"6,991.81"
Department of Health,NHS Sheffield CCG,31/01/2020,C&M-GMS Cost of Drugs -Prescribing,LOCAL ENHANCED SERVICES,HEALTH CARE SURGERY,30805312,"2,630.49"
Department of Health,NHS Sheffield CCG,31/01/2020,C&M-GMS Global Sum,PRC DELEGATED CO-COMMISSIONING,HEALTH CARE SURGERY,30805312,"39,031.56"
Department of Health,NHS Sheffield CCG,31/01/2020,C&M-GMS MPIG Correction Factor,PRC DELEGATED CO-COMMISSIONING,HEALTH CARE SURGERY,30805312,390.01
Department of Health,NHS Sheffield CCG,31/01/2020,C&M-GMS PCN DES Participation,PRC DELEGATED CO-COMMISSIONING,HEALTH CARE SURGERY,30805312,796.77
Department of Health,NHS Sheffield CCG,31/01/2020,C&M-GMS PCO Other,PRC DELEGATED CO-COMMISSIONING,HEALTH CARE SURGERY,30805312,342.1
Department of Health,NHS Sheffield CCG,31/01/2020,C&M-GMS Prem Notional Rent,PRC DELEGATED CO-COMMISSIONING,HEALTH CARE SURGERY,30805312,"3,862.50"
Department of Health,NHS Sheffield CCG,31/01/2020,C&M-GMS Prem Rates,PRC DELEGATED CO-COMMISSIONING,HEALTH CARE SURGERY,30805312,645.88
Department of Health,NHS Sheffield CCG,31/01/2020,C&M-GMS Prof Fees Prescribing,PRC DELEGATED CO-COMMISSIONING,HEALTH CARE SURGERY,30805312,467.59
Department of Health,NHS Sheffield CCG,31/01/2020,C&M-GMS QOF Aspiration,PRC DELEGATED CO-COMMISSIONING,HEALTH CARE SURGERY,30805312,"4,056.36"
Department of Health,NHS Sheffield CCG,31/01/2020,C&M-GMS Cost of Drugs -Prescribing,LOCAL ENHANCED SERVICES,MEDICAL CENTRE CRYSTAL PEAKS,30805316,"2,963.52"
Department of Health,NHS Sheffield CCG,31/01/2020,C&M-GMS Global Sum,PRC DELEGATED CO-COMMISSIONING,MEDICAL CENTRE CRYSTAL PEAKS,30805316,"47,371.83"
Department of Health,NHS Sheffield CCG,31/01/2020,C&M-GMS MPIG Correction Factor,PRC DELEGATED CO-COMMISSIONING,MEDICAL CENTRE CRYSTAL PEAKS,30805316,565.67
Department of Health,NHS Sheffield CCG,31/01/2020,C&M-GMS PCN DES Participation,PRC DELEGATED CO-COMMISSIONING,MEDICAL CENTRE CRYSTAL PEAKS,30805316,950
Department of Health,NHS Sheffield CCG,31/01/2020,C&M-GMS PCO Other,PRC DELEGATED CO-COMMISSIONING,MEDICAL CENTRE CRYSTAL PEAKS,30805316,426.6
Department of Health,NHS Sheffield CCG,31/01/2020,C&M-GMS Prem Actual Rent,PRC DELEGATED CO-COMMISSIONING,MEDICAL CENTRE CRYSTAL PEAKS,30805316,"17,610.00"
Department of Health,NHS Sheffield CCG,31/01/2020,C&M-GMS Prem Notional Rent,PRC DELEGATED CO-COMMISSIONING,MEDICAL CENTRE CRYSTAL PEAKS,30805316,270
Department of Health,NHS Sheffield CCG,31/01/2020,C&M-GMS Prem Rates,PRC DELEGATED CO-COMMISSIONING,MEDICAL CENTRE CRYSTAL PEAKS,30805316,"1,056.00"
Department of Health,NHS Sheffield CCG,31/01/2020,C&M-GMS Prem Water Rates,PRC DELEGATED CO-COMMISSIONING,MEDICAL CENTRE CRYSTAL PEAKS,30805316,"1,101.23"
Department of Health,NHS Sheffield CCG,31/01/2020,C&M-GMS Prof Fees Prescribing,PRC DELEGATED CO-COMMISSIONING,MEDICAL CENTRE CRYSTAL PEAKS,30805316,724.16
Department of Health,NHS Sheffield CCG,31/01/2020,C&M-GMS QOF Aspiration,PRC DELEGATED CO-COMMISSIONING,MEDICAL CENTRE CRYSTAL PEAKS,30805316,"6,211.79"
Department of Health,NHS Sheffield CCG,31/01/2020,C&M-GMS Cost of Drugs -Prescribing,LOCAL ENHANCED SERVICES,MATHEWS PRACTICE,30805320,216.03
Department of Health,NHS Sheffield CCG,31/01/2020,C&M-GMS Global Sum,PRC DELEGATED CO-COMMISSIONING,MATHEWS PRACTICE,30805320,"57,960.36"
Department of Health,NHS Sheffield CCG,31/01/2020,C&M-GMS MPIG Correction Factor,PRC DELEGATED CO-COMMISSIONING,MATHEWS PRACTICE,30805320,299.48
Department of Health,NHS Sheffield CCG,31/01/2020,C&M-GMS PCN DES Participation,PRC DELEGATED CO-COMMISSIONING,MATHEWS PRACTICE,30805320,"1,281.64"
Department of Health,NHS Sheffield CCG,31/01/2020,C&M-GMS Prem Notional Rent,PRC DELEGATED CO-COMMISSIONING,MATHEWS PRACTICE,30805320,"8,660.42"
Department of Health,NHS Sheffield CCG,31/01/2020,C&M-GMS Prem Rates,PRC DELEGATED CO-COMMISSIONING,MATHEWS PRACTICE,30805320,"2,148.00"
Department of Health,NHS Sheffield CCG,31/01/2020,C&M-GMS Prof Fees Prescribing,PRC DELEGATED CO-COMMISSIONING,MATHEWS PRACTICE,30805320,97.24
Department of Health,NHS Sheffield CCG,31/01/2020,C&M-GMS QOF Aspiration,PRC DELEGATED CO-COMMISSIONING,MATHEWS PRACTICE,30805320,"7,156.84"
Department of Health,NHS Sheffield CCG,31/01/2020,C&M-GMS Cost of Drugs -Prescribing,LOCAL ENHANCED SERVICES,MILL ROAD SURGERY SHEFFIELD,30805323,"4,273.13"
Department of Health,NHS Sheffield CCG,31/01/2020,C&M-GMS Global Sum,PRC DELEGATED CO-COMMISSIONING,MILL ROAD SURGERY SHEFFIELD,30805323,"40,567.83"
Department of Health,NHS Sheffield CCG,31/01/2020,C&M-GMS MPIG Correction Factor,PRC DELEGATED CO-COMMISSIONING,MILL ROAD SURGERY SHEFFIELD,30805323,61.02
Department of Health,NHS Sheffield CCG,31/01/2020,C&M-GMS PCN DES Participation,PRC DELEGATED CO-COMMISSIONING,MILL ROAD SURGERY SHEFFIELD,30805323,842.44
Department of Health,NHS Sheffield CCG,31/01/2020,C&M-GMS PCO Other,PRC DELEGATED CO-COMMISSIONING,MILL ROAD SURGERY SHEFFIELD,30805323,352.7
Department of Health,NHS Sheffield CCG,31/01/2020,C&M-GMS Prem Notional Rent,PRC DELEGATED CO-COMMISSIONING,MILL ROAD SURGERY SHEFFIELD,30805323,"4,593.33"
Department of Health,NHS Sheffield CCG,31/01/2020,C&M-GMS Prem Rates,PRC DELEGATED CO-COMMISSIONING,MILL ROAD SURGERY SHEFFIELD,30805323,"1,056.00"
Department of Health,NHS Sheffield CCG,31/01/2020,C&M-GMS Prof Fees Prescribing,PRC DELEGATED CO-COMMISSIONING,MILL ROAD SURGERY SHEFFIELD,30805323,877.26
Department of Health,NHS Sheffield CCG,31/01/2020,C&M-GMS QOF Aspiration,PRC DELEGATED CO-COMMISSIONING,MILL ROAD SURGERY SHEFFIELD,30805323,"5,088.50"
Department of Health,NHS Sheffield CCG,31/01/2020,C&M-GMS Cost of Drugs -Prescribing,LOCAL ENHANCED SERVICES,NORFOLK PARK HEALTH CENTRE,30805328,"1,914.54"
Department of Health,NHS Sheffield CCG,31/01/2020,C&M-GMS Global Sum,PRC DELEGATED CO-COMMISSIONING,NORFOLK PARK HEALTH CENTRE,30805328,"39,830.85"
Department of Health,NHS Sheffield CCG,31/01/2020,C&M-GMS MPIG Correction Factor,PRC DELEGATED CO-COMMISSIONING,NORFOLK PARK HEALTH CENTRE,30805328,462.3
Department of Health,NHS Sheffield CCG,31/01/2020,C&M-GMS PCN DES Participation,PRC DELEGATED CO-COMMISSIONING,NORFOLK PARK HEALTH CENTRE,30805328,763.41
Department of Health,NHS Sheffield CCG,31/01/2020,C&M-GMS Prem Healthcentre Rent,PRC DELEGATED CO-COMMISSIONING,NORFOLK PARK HEALTH CENTRE,30805328,"24,820.01"
Department of Health,NHS Sheffield CCG,31/01/2020,C&M-GMS Prof Fees Prescribing,PRC DELEGATED CO-COMMISSIONING,NORFOLK PARK HEALTH CENTRE,30805328,436.56
Department of Health,NHS Sheffield CCG,31/01/2020,C&M-GMS QOF Aspiration,PRC DELEGATED CO-COMMISSIONING,NORFOLK PARK HEALTH CENTRE,30805328,"3,941.29"
Department of Health,NHS Sheffield CCG,31/01/2020,C&M-GMS GP Statutory Levy,PRC DELEGATED CO-COMMISSIONING,NORWOOD MEDICAL CENTRE SHEFFIELD,30805330,-284.34
Department of Health,NHS Sheffield CCG,31/01/2020,C&M-GMS Cost of Drugs -Prescribing,LOCAL ENHANCED SERVICES,NORWOOD MEDICAL CENTRE SHEFFIELD,30805331,"4,817.43"
Department of Health,NHS Sheffield CCG,31/01/2020,C&M-GMS Global Sum,PRC DELEGATED CO-COMMISSIONING,NORWOOD MEDICAL CENTRE SHEFFIELD,30805331,"65,363.97"
Department of Health,NHS Sheffield CCG,31/01/2020,C&M-GMS PCN DES Participation,PRC DELEGATED CO-COMMISSIONING,NORWOOD MEDICAL CENTRE SHEFFIELD,30805331,"1,337.61"
Department of Health,NHS Sheffield CCG,31/01/2020,C&M-GMS PCO Other,PRC DELEGATED CO-COMMISSIONING,NORWOOD MEDICAL CENTRE SHEFFIELD,30805331,510
Department of Health,NHS Sheffield CCG,31/01/2020,C&M-GMS Prem Notional Rent,PRC DELEGATED CO-COMMISSIONING,NORWOOD MEDICAL CENTRE SHEFFIELD,30805331,"5,187.50"
Department of Health,NHS Sheffield CCG,31/01/2020,C&M-GMS Prem Rates,PRC DELEGATED CO-COMMISSIONING,NORWOOD MEDICAL CENTRE SHEFFIELD,30805331,"1,279.00"
Department of Health,NHS Sheffield CCG,31/01/2020,C&M-GMS Prof Fees Prescribing,PRC DELEGATED CO-COMMISSIONING,NORWOOD MEDICAL CENTRE SHEFFIELD,30805331,996.03
Department of Health,NHS Sheffield CCG,31/01/2020,C&M-GMS QOF Aspiration,PRC DELEGATED CO-COMMISSIONING,NORWOOD MEDICAL CENTRE SHEFFIELD,30805331,"8,171.17"
Department of Health,NHS Sheffield CCG,31/01/2020,C&M-GMS Cost of Drugs -Dispensing,LOCAL ENHANCED SERVICES,OUGHTIBRIDGE SURGERY,30805335,"32,226.15"
Department of Health,NHS Sheffield CCG,31/01/2020,C&M-GMS Global Sum,PRC DELEGATED CO-COMMISSIONING,OUGHTIBRIDGE SURGERY,30805335,"43,420.45"
Department of Health,NHS Sheffield CCG,31/01/2020,C&M-GMS PCN DES Participation,PRC DELEGATED CO-COMMISSIONING,OUGHTIBRIDGE SURGERY,30805335,889.02
Department of Health,NHS Sheffield CCG,31/01/2020,C&M-GMS Prem Notional Rent,PRC DELEGATED CO-COMMISSIONING,OUGHTIBRIDGE SURGERY,30805335,"3,957.33"
Department of Health,NHS Sheffield CCG,31/01/2020,C&M-GMS Prem Rates,PRC DELEGATED CO-COMMISSIONING,OUGHTIBRIDGE SURGERY,30805335,895
Department of Health,NHS Sheffield CCG,31/01/2020,C&M-GMS Prof Fees Dispensing,PRC DELEGATED CO-COMMISSIONING,OUGHTIBRIDGE SURGERY,30805335,"4,698.96"
Department of Health,NHS Sheffield CCG,31/01/2020,C&M-GMS PrscrptnChrgsColl&RmttdbyGP,LOCAL ENHANCED SERVICES,OUGHTIBRIDGE SURGERY,30805335,630
Department of Health,NHS Sheffield CCG,31/01/2020,C&M-GMS QOF Aspiration,PRC DELEGATED CO-COMMISSIONING,OUGHTIBRIDGE SURGERY,30805335,"4,261.60"
Department of Health,NHS Sheffield CCG,31/01/2020,C&M-GMS Cost of Drugs -Prescribing,LOCAL ENHANCED SERVICES,SHARROW LANE MEDICAL CENTRE,30805339,"1,620.18"
Department of Health,NHS Sheffield CCG,31/01/2020,C&M-GMS Global Sum,PRC DELEGATED CO-COMMISSIONING,SHARROW LANE MEDICAL CENTRE,30805339,"23,764.52"
Department of Health,NHS Sheffield CCG,31/01/2020,C&M-GMS MPIG Correction Factor,PRC DELEGATED CO-COMMISSIONING,SHARROW LANE MEDICAL CENTRE,30805339,980.16
Department of Health,NHS Sheffield CCG,31/01/2020,C&M-GMS PCN DES Participation,PRC DELEGATED CO-COMMISSIONING,SHARROW LANE MEDICAL CENTRE,30805339,481.39
Department of Health,NHS Sheffield CCG,31/01/2020,C&M-GMS PCO Other,PRC DELEGATED CO-COMMISSIONING,SHARROW LANE MEDICAL CENTRE,30805339,274
Department of Health,NHS Sheffield CCG,31/01/2020,C&M-GMS Prem Notional Rent,PRC DELEGATED CO-COMMISSIONING,SHARROW LANE MEDICAL CENTRE,30805339,"2,741.67"
Department of Health,NHS Sheffield CCG,31/01/2020,C&M-GMS Prem Rates,PRC DELEGATED CO-COMMISSIONING,SHARROW LANE MEDICAL CENTRE,30805339,581
Department of Health,NHS Sheffield CCG,31/01/2020,C&M-GMS Prem Water Rates,PRC DELEGATED CO-COMMISSIONING,SHARROW LANE MEDICAL CENTRE,30805339,95.31
Department of Health,NHS Sheffield CCG,31/01/2020,C&M-GMS Prof Fees Prescribing,PRC DELEGATED CO-COMMISSIONING,SHARROW LANE MEDICAL CENTRE,30805339,331.04
Department of Health,NHS Sheffield CCG,31/01/2020,C&M-GMS QOF Aspiration,PRC DELEGATED CO-COMMISSIONING,SHARROW LANE MEDICAL CENTRE,30805339,"2,666.85"
Department of Health,NHS Sheffield CCG,31/01/2020,C&M-GMS Global Sum,PRC DELEGATED CO-COMMISSIONING,SHIREGREEN MEDICAL CENTRE,30805347,"58,191.33"
Department of Health,NHS Sheffield CCG,31/01/2020,C&M-GMS MPIG Correction Factor,PRC DELEGATED CO-COMMISSIONING,SHIREGREEN MEDICAL CENTRE,30805347,226.84
Department of Health,NHS Sheffield CCG,31/01/2020,C&M-GMS PCN DES Participation,PRC DELEGATED CO-COMMISSIONING,SHIREGREEN MEDICAL CENTRE,30805347,"1,217.78"
Department of Health,NHS Sheffield CCG,31/01/2020,C&M-GMS PCO Other,PRC DELEGATED CO-COMMISSIONING,SHIREGREEN MEDICAL CENTRE,30805347,"5,003.00"
Department of Health,NHS Sheffield CCG,31/01/2020,C&M-GMS Prem Cost Rent,PRC DELEGATED CO-COMMISSIONING,SHIREGREEN MEDICAL CENTRE,30805347,"1,792.33"
Department of Health,NHS Sheffield CCG,31/01/2020,C&M-GMS Prem Notional Rent,PRC DELEGATED CO-COMMISSIONING,SHIREGREEN MEDICAL CENTRE,30805347,"5,375.00"
Department of Health,NHS Sheffield CCG,31/01/2020,C&M-GMS Prem Rates,PRC DELEGATED CO-COMMISSIONING,SHIREGREEN MEDICAL CENTRE,30805347,"1,922.00"
Department of Health,NHS Sheffield CCG,31/01/2020,C&M-GMS QOF Aspiration,PRC DELEGATED CO-COMMISSIONING,SHIREGREEN MEDICAL CENTRE,30805347,"6,849.89"
Department of Health,NHS Sheffield CCG,31/01/2020,C&M-GMS Cost of Drugs -Prescribing,LOCAL ENHANCED SERVICES,STONECROFT MEDICAL CENTRE,30805349,"3,131.39"
Department of Health,NHS Sheffield CCG,31/01/2020,C&M-GMS Global Sum,PRC DELEGATED CO-COMMISSIONING,STONECROFT MEDICAL CENTRE,30805349,"32,533.46"
Department of Health,NHS Sheffield CCG,31/01/2020,C&M-GMS MPIG Correction Factor,PRC DELEGATED CO-COMMISSIONING,STONECROFT MEDICAL CENTRE,30805349,309.13
Department of Health,NHS Sheffield CCG,31/01/2020,C&M-GMS PCN DES Participation,PRC DELEGATED CO-COMMISSIONING,STONECROFT MEDICAL CENTRE,30805349,657.55
Department of Health,NHS Sheffield CCG,31/01/2020,C&M-GMS PCO Other,PRC DELEGATED CO-COMMISSIONING,STONECROFT MEDICAL CENTRE,30805349,284.7
Department of Health,NHS Sheffield CCG,31/01/2020,C&M-GMS Prem Notional Rent,PRC DELEGATED CO-COMMISSIONING,STONECROFT MEDICAL CENTRE,30805349,"2,808.33"
Department of Health,NHS Sheffield CCG,31/01/2020,C&M-GMS Prem Rates,PRC DELEGATED CO-COMMISSIONING,STONECROFT MEDICAL CENTRE,30805349,"1,215.00"
Department of Health,NHS Sheffield CCG,31/01/2020,C&M-GMS Prof Fees Prescribing,PRC DELEGATED CO-COMMISSIONING,STONECROFT MEDICAL CENTRE,30805349,653.81
Department of Health,NHS Sheffield CCG,31/01/2020,C&M-GMS QOF Aspiration,PRC DELEGATED CO-COMMISSIONING,STONECROFT MEDICAL CENTRE,30805349,"4,228.40"
Department of Health,NHS Sheffield CCG,31/01/2020,C&M-GMS Global Sum,PRC DELEGATED CO-COMMISSIONING,STANNINGTON MEDICAL CENTRE,30805351,"26,155.43"
Department of Health,NHS Sheffield CCG,31/01/2020,C&M-GMS PCO Other,PRC DELEGATED CO-COMMISSIONING,STANNINGTON MEDICAL CENTRE,30805351,237.7
Department of Health,NHS Sheffield CCG,31/01/2020,C&M-GMS Prem Notional Rent,PRC DELEGATED CO-COMMISSIONING,STANNINGTON MEDICAL CENTRE,30805351,"2,575.00"
Department of Health,NHS Sheffield CCG,31/01/2020,C&M-GMS QOF Aspiration,PRC DELEGATED CO-COMMISSIONING,STANNINGTON MEDICAL CENTRE,30805351,"2,881.70"
Department of Health,NHS Sheffield CCG,31/01/2020,C&M-GMS Cost of Drugs -Prescribing,LOCAL ENHANCED SERVICES,TOTLEY RISE MEDICAL CENTRE,30805353,"2,134.89"
Department of Health,NHS Sheffield CCG,31/01/2020,C&M-GMS Global Sum,PRC DELEGATED CO-COMMISSIONING,TOTLEY RISE MEDICAL CENTRE,30805353,"25,904.58"
Department of Health,NHS Sheffield CCG,31/01/2020,C&M-GMS MPIG Correction Factor,PRC DELEGATED CO-COMMISSIONING,TOTLEY RISE MEDICAL CENTRE,30805353,51.57
Department of Health,NHS Sheffield CCG,31/01/2020,C&M-GMS PCN DES Participation,PRC DELEGATED CO-COMMISSIONING,TOTLEY RISE MEDICAL CENTRE,30805353,504.35
Department of Health,NHS Sheffield CCG,31/01/2020,C&M-GMS Prem Notional Rent,PRC DELEGATED CO-COMMISSIONING,TOTLEY RISE MEDICAL CENTRE,30805353,"1,604.17"
Department of Health,NHS Sheffield CCG,31/01/2020,C&M-GMS Prem Water Rates,PRC DELEGATED CO-COMMISSIONING,TOTLEY RISE MEDICAL CENTRE,30805353,437.11
Department of Health,NHS Sheffield CCG,31/01/2020,C&M-GMS Prof Fees Prescribing,PRC DELEGATED CO-COMMISSIONING,TOTLEY RISE MEDICAL CENTRE,30805353,451.04
Department of Health,NHS Sheffield CCG,31/01/2020,C&M-GMS QOF Aspiration,PRC DELEGATED CO-COMMISSIONING,TOTLEY RISE MEDICAL CENTRE,30805353,"2,304.18"
Department of Health,NHS Sheffield CCG,31/01/2020,C&M-GMS Cost of Drugs -Prescribing,LOCAL ENHANCED SERVICES,TRAMWAYS MEDICAL CENTRE,30805355,"4,839.17"
Department of Health,NHS Sheffield CCG,31/01/2020,C&M-GMS Global Sum,PRC DELEGATED CO-COMMISSIONING,TRAMWAYS MEDICAL CENTRE,30805355,"61,153.02"
Department of Health,NHS Sheffield CCG,31/01/2020,C&M-GMS PCN DES Participation,PRC DELEGATED CO-COMMISSIONING,TRAMWAYS MEDICAL CENTRE,30805355,"1,263.94"
Department of Health,NHS Sheffield CCG,31/01/2020,C&M-GMS PCO Other,PRC DELEGATED CO-COMMISSIONING,TRAMWAYS MEDICAL CENTRE,30805355,534.6
Department of Health,NHS Sheffield CCG,31/01/2020,C&M-GMS Prem Cost Rent,PRC DELEGATED CO-COMMISSIONING,TRAMWAYS MEDICAL CENTRE,30805355,"4,012.75"
Department of Health,NHS Sheffield CCG,31/01/2020,C&M-GMS Prem Rates,PRC DELEGATED CO-COMMISSIONING,TRAMWAYS MEDICAL CENTRE,30805355,"1,098.00"
Department of Health,NHS Sheffield CCG,31/01/2020,C&M-GMS Prem Water Rates,PRC DELEGATED CO-COMMISSIONING,TRAMWAYS MEDICAL CENTRE,30805355,261.98
Department of Health,NHS Sheffield CCG,31/01/2020,C&M-GMS Prof Fees Prescribing,PRC DELEGATED CO-COMMISSIONING,TRAMWAYS MEDICAL CENTRE,30805355,815.18
Department of Health,NHS Sheffield CCG,31/01/2020,C&M-GMS QOF Aspiration,PRC DELEGATED CO-COMMISSIONING,TRAMWAYS MEDICAL CENTRE,30805355,"5,645.42"
Department of Health,NHS Sheffield CCG,31/01/2020,C&M-GMS Cost of Drugs -Prescribing,LOCAL ENHANCED SERVICES,UPPERTHORPE MEDICAL CENTRE,30805358,"8,597.72"
Department of Health,NHS Sheffield CCG,31/01/2020,C&M-GMS Global Sum,PRC DELEGATED CO-COMMISSIONING,UPPERTHORPE MEDICAL CENTRE,30805358,"84,954.72"
Department of Health,NHS Sheffield CCG,31/01/2020,C&M-GMS MPIG Correction Factor,PRC DELEGATED CO-COMMISSIONING,UPPERTHORPE MEDICAL CENTRE,30805358,662.87
Department of Health,NHS Sheffield CCG,31/01/2020,C&M-GMS PCN DES Participation,PRC DELEGATED CO-COMMISSIONING,UPPERTHORPE MEDICAL CENTRE,30805358,"1,681.95"
Department of Health,NHS Sheffield CCG,31/01/2020,C&M-GMS Prem Notional Rent,PRC DELEGATED CO-COMMISSIONING,UPPERTHORPE MEDICAL CENTRE,30805358,"2,547.83"
Department of Health,NHS Sheffield CCG,31/01/2020,C&M-GMS Prem Rates,PRC DELEGATED CO-COMMISSIONING,UPPERTHORPE MEDICAL CENTRE,30805358,"2,318.00"
Department of Health,NHS Sheffield CCG,31/01/2020,C&M-GMS Prem Water Rates,PRC DELEGATED CO-COMMISSIONING,UPPERTHORPE MEDICAL CENTRE,30805358,124.29
Department of Health,NHS Sheffield CCG,31/01/2020,C&M-GMS Prof Fees Prescribing,PRC DELEGATED CO-COMMISSIONING,UPPERTHORPE MEDICAL CENTRE,30805358,"1,661.41"
Department of Health,NHS Sheffield CCG,31/01/2020,C&M-GMS QOF Aspiration,PRC DELEGATED CO-COMMISSIONING,UPPERTHORPE MEDICAL CENTRE,30805358,"9,072.83"
Department of Health,NHS Sheffield CCG,31/01/2020,C&M-GMS Cost of Drugs -Prescribing,LOCAL ENHANCED SERVICES,WHITE HOUSE SURGERY SHEFFIELD,30805361,"5,504.39"
Department of Health,NHS Sheffield CCG,31/01/2020,C&M-GMS Global Sum,PRC DELEGATED CO-COMMISSIONING,WHITE HOUSE SURGERY SHEFFIELD,30805361,"51,680.56"
Department of Health,NHS Sheffield CCG,31/01/2020,C&M-GMS MPIG Correction Factor,PRC DELEGATED CO-COMMISSIONING,WHITE HOUSE SURGERY SHEFFIELD,30805361,695.65
Department of Health,NHS Sheffield CCG,31/01/2020,C&M-GMS PCN DES Participation,PRC DELEGATED CO-COMMISSIONING,WHITE HOUSE SURGERY SHEFFIELD,30805361,"1,038.45"
Department of Health,NHS Sheffield CCG,31/01/2020,C&M-GMS Prem Notional Rent,PRC DELEGATED CO-COMMISSIONING,WHITE HOUSE SURGERY SHEFFIELD,30805361,"9,412.50"
Department of Health,NHS Sheffield CCG,31/01/2020,C&M-GMS Prem Rates,PRC DELEGATED CO-COMMISSIONING,WHITE HOUSE SURGERY SHEFFIELD,30805361,"2,443.00"
Department of Health,NHS Sheffield CCG,31/01/2020,C&M-GMS Prof Fees Prescribing,PRC DELEGATED CO-COMMISSIONING,WHITE HOUSE SURGERY SHEFFIELD,30805361,"1,195.89"
Department of Health,NHS Sheffield CCG,31/01/2020,C&M-GMS QOF Aspiration,PRC DELEGATED CO-COMMISSIONING,WHITE HOUSE SURGERY SHEFFIELD,30805361,"6,233.52"
Department of Health,NHS Sheffield CCG,31/01/2020,C&M-GMS Global Sum,PRC DELEGATED CO-COMMISSIONING,WALKLEY HOUSE MEDICAL CENTRE,30805363,"85,597.10"
Department of Health,NHS Sheffield CCG,31/01/2020,C&M-GMS PCN DES Participation,PRC DELEGATED CO-COMMISSIONING,WALKLEY HOUSE MEDICAL CENTRE,30805363,"1,749.49"
Department of Health,NHS Sheffield CCG,31/01/2020,C&M-GMS Prem Notional Rent,PRC DELEGATED CO-COMMISSIONING,WALKLEY HOUSE MEDICAL CENTRE,30805363,"5,635.50"
Department of Health,NHS Sheffield CCG,31/01/2020,C&M-GMS Prem Rates,PRC DELEGATED CO-COMMISSIONING,WALKLEY HOUSE MEDICAL CENTRE,30805363,"1,845.00"
Department of Health,NHS Sheffield CCG,31/01/2020,C&M-GMS Prem Water Rates,PRC DELEGATED CO-COMMISSIONING,WALKLEY HOUSE MEDICAL CENTRE,30805363,422.48
Department of Health,NHS Sheffield CCG,31/01/2020,C&M-GMS QOF Aspiration,PRC DELEGATED CO-COMMISSIONING,WALKLEY HOUSE MEDICAL CENTRE,30805363,"8,602.90"
Department of Health,NHS Sheffield CCG,31/01/2020,C&M-GMS Cost of Drugs -Prescribing,LOCAL ENHANCED SERVICES,ELM LANE SURGERY,30823015,"5,078.10"
Department of Health,NHS Sheffield CCG,31/01/2020,C&M-GMS Global Sum,PRC DELEGATED CO-COMMISSIONING,ELM LANE SURGERY,30823015,"41,403.18"
Department of Health,NHS Sheffield CCG,31/01/2020,C&M-GMS MPIG Correction Factor,PRC DELEGATED CO-COMMISSIONING,ELM LANE SURGERY,30823015,419.26
Department of Health,NHS Sheffield CCG,31/01/2020,C&M-GMS PCN DES Participation,PRC DELEGATED CO-COMMISSIONING,ELM LANE SURGERY,30823015,821.44
Department of Health,NHS Sheffield CCG,31/01/2020,C&M-GMS Prem Notional Rent,PRC DELEGATED CO-COMMISSIONING,ELM LANE SURGERY,30823015,"5,343.00"
Department of Health,NHS Sheffield CCG,31/01/2020,C&M-GMS Prof Fees Prescribing,PRC DELEGATED CO-COMMISSIONING,ELM LANE SURGERY,30823015,806.92
Department of Health,NHS Sheffield CCG,31/01/2020,C&M-GMS QOF Aspiration,PRC DELEGATED CO-COMMISSIONING,ELM LANE SURGERY,30823015,"4,720.25"
Department of Health,NHS Sheffield CCG,31/01/2020,Hcare Srv Rec Fdtn Trust-Non Contract,MENTAL HEALTH CONTRACTS,SHEFFIELD HEALTH & SOCIAL CARE NHS FOUNDATION TRUST,30831532,"121,001.05"
Department of Health,NHS Sheffield CCG,31/01/2020,Clinical&Medical-Serv Recd-F Trsts,BEREAVEMENT SERVICE,DONCASTER AND BASSETLAW HOSPITALS NHS FOUNDATION TRUST,30831548,"175,000.00"
Department of Health,NHS Sheffield CCG,31/01/2020,Cont Care-Physical Disab (65+),CHC ADULT FULLY FUNDED,SHEFFIELD CITY COUNCIL,30831578,"870,636.25"
Department of Health,NHS Sheffield CCG,31/01/2020,C&M-GMS IT Comm Servs -GP Practices,PRIMARY CARE IT,NHS ENGLAND,30831584,"40,656.21"
Department of Health,NHS Sheffield CCG,31/01/2020,C&M-GMS Prem Other,PRC DELEGATED CO-COMMISSIONING,NHS ENGLAND,30831587,"1,408.12"
Department of Health,NHS Sheffield CCG,31/01/2020,Contract- Refuse & Clinical Waste,PRC DELEGATED CO-COMMISSIONING,NHS ENGLAND,30831587,"69,692.00"
Department of Health,NHS Sheffield CCG,31/01/2020,Hcare Srv Rec Fdtn Trust-Contract Baseline,MENTAL HEALTH CONTRACTS,SHEFFIELD HEALTH & SOCIAL CARE NHS FOUNDATION TRUST,30831593,"6,833,545.75"
Department of Health,NHS Sheffield CCG,31/01/2020,Hcare Srv Rec Fdtn Trust-Contract Baseline,ACUTE COMMISSIONING,CHESTERFIELD ROYAL HOSPITAL NHS FOUNDATION TRUST,30831609,"318,586.00"
Department of Health,NHS Sheffield CCG,31/01/2020,Hcare Srv Rec Fdtn Trust-Contract Baseline,ACUTE COMMISSIONING,SHEFFIELD TEACHING HOSPITALS NHS FOUNDATION TRUST,30831632,"192,715.00"
Department of Health,NHS Sheffield CCG,31/01/2020,Hcare Srv Rec Fdtn Trust-Contract Baseline,ACUTE COMMISSIONING,SHEFFIELD TEACHING HOSPITALS NHS FOUNDATION TRUST,30831635,"3,898,718.00"
Department of Health,NHS Sheffield CCG,31/01/2020,Hcare Srv Rec Fdtn Trust-Contract Baseline,ACUTE COMMISSIONING,SHEFFIELD TEACHING HOSPITALS NHS FOUNDATION TRUST,30831637,"30,408,061.00"
Department of Health,NHS Sheffield CCG,31/01/2020,Hcare Srv Rec Fdtn Trust-Contract Baseline,ACUTE COMMISSIONING,SHEFFIELD TEACHING HOSPITALS NHS FOUNDATION TRUST,30831639,"1,367,221.00"
Department of Health,NHS Sheffield CCG,31/01/2020,C&M-APMS LES Basket of Procedures,LOCAL ENHANCED SERVICES,DOVERCOURT SURGERY,30831651,"90,000.00"
Department of Health,NHS Sheffield CCG,31/01/2020,Cont Care- Children,CHC CHILDREN,SHEFFIELD CITY COUNCIL,30831703,"46,740.77"
Department of Health,NHS Sheffield CCG,31/01/2020,Other Gen Supplies & Srv,CLINICAL LEADS,ROTHERHAM NHS FOUNDATION TRUST,30836095,"116,000.00"
Department of Health,NHS Sheffield CCG,31/01/2020,Computer Software/License,BEREAVEMENT SERVICE,QUALITY EDUCATION SOLUTIONS LTD,30847198,"28,800.00"
Department of Health,NHS Sheffield CCG,31/01/2020,External Consultancy Fees,CLINICAL LEADS,AURORA WELLBEING CENTRE,30853041,"25,453.29"
Department of Health,NHS Sheffield CCG,31/01/2020,Hcare Srv Rec Fdtn Trust-Contract Baseline,ACUTE COMMISSIONING,CHESTERFIELD ROYAL HOSPITAL NHS FOUNDATION TRUST,30858488,"30,104.00"
Department of Health,NHS Sheffield CCG,31/01/2020,Computer Software/License,BUSINESS INFORMATICS,KIER BUSINESS SERVICES LTD,30858591,"30,150.00"
Department of Health,NHS Sheffield CCG,31/01/2020,Clinical&Medical-Independent Sector - Non Contract,LEARNING DIFFICULTIES,ELYSIUM HEALTHCARE LTD,30877105,"33,434.50"
